Workbook

Sheet 도움말
B1: 물품대장 V.1.32 | J1: http://kimjy.net | BB1: 300
B3: 엑셀로 제작한 물품관리대장입니다.
B5: 첨부된 파일을 다운받으신 후 압축을 풀면 \물품대장\ 폴더에 압축이 풀립니다.
B7: 물품사진은 [\물품대장\2006\ ]
B8: [\물품대장\2017\ ]
B9: 추가할 사진 자료는 폴더명을 4자리 년도로 만들어 주시면되구요..
B10: 사진 크기는 640 × 480 으로 통일해 주시고 사진파일명은 물품번호와 동일하게 만들어 주시면 됩니다.
B11: 예) 06-012.jpg 17-110.jpg
B14: 물품번호는 2자리년도-세자리 번호로 형식 [예:06-001 ,07-003]을 기본으로 합니다.
B15: 년구입 물품이 1000개를 넘어가는 경우 물품번호는 2자리년도-네자리 [17-0001] 다섯자리 [17-00001]도 가능합니다.
B17: * 라벨
B18: [재물원장]쉬트에서 [라벨작성] 버튼을 클릭하시고 범위를 선택하시면 라벨을 작성해 줍니다.
B19: 라벨용지는 3*8 을 기준으로 작성되어 있습니다.
B20: 라벨용지는 회사별로 작은 차이가 있고, 프린트에 따라 여백도 조정하셔서 사용하시면 됩니다.
B21: 인쇄 버튼을 누르면 여백이 자동으로 조정됩니다.
B22: A5:D11을 수정하신 후 서식적용 버튼을 클릭하신후 페이지 여백을 조정하시면 사용하실 수 있습니다.
B23: B6에는 재물조사명 B10에는 조직명을 입력해 주세요.
B24: 왼쪽, 윗쪽 여백을 입력후 인쇄 버튼 실행하면 여백 적용( 초기값 왼쪽=0.4 , 윗쪽=1.3)
B26: * 물품이력카드
B27: 해당 물품행에 커서를 두고 [이력카드보기] 버튼을 클릭하시면 이력카드를 작성해 줍니다.
B28: [물품이력카드]에서는 물품과 관련 모든 정보와 사진을 한눈에 보실 수 있습니다.
B30: * 수리이력
B31: 수리이력작성은 해당 물품행에 커서를 두고 [수리이력정리] 버튼을 클릭하시거사 ^+q를 누르시면 수리이력을 작성하실 수 있습니다.
B33: * 사진확인
B34: [사진확인] 버튼을 클릴하시면 모든 물품의 사진 유무를 확인해 줍니다.
B36: 사용 중 궁금한 사항은 http://kimjy.net/ 잡동사니 게시판 해당 게시물에 댓글 남겨주시기 바랍니다.
B38: * V 1.32 업글
B39: 1. 라벨에 윗여백, 왼쪽여백 조정가능하도록 수정
B40: 내용연수,상각액,장부가액,폐기여부 항목추가(기준일은 O4에 입력)
B42: * V 1.31 업글
B43: 1. 물품이력카드 사진위치 [물품이력카드]에서 입력할 수 있도록 수정
B44: 왼쪽, 윗쪽 여백을 입력해 주세요.
B45: 초기값 왼쪽=92.5 , 윗쪽=440.5
B47: * V 1.3 업글
B48: 1. 물품이력카드 사진위치 오류 수정
B50: * V 1.2 업글
B51: 1. 대장 최대 입력 개수를 300개에서 3,000로 변경
B53: * V 1.1 업글
B54: 1. 이력카드보기 수리내역 작성 에러 수정
B55: 2. 이력카드보기 속도 개선
B56: 3. 이력카드 구입일자, 구입금액, 규격 위치 수정
B57: 4. 원장 인쇄 범위 수정
B58: 5. 라벨 인쇄범위 수정

Sheet 재물원장
O4: =TODAY() -> 2019-06-21 | Q4: 전자소자연구실
A5: 물품번호 | B5: 물품명 | C5: 규 격 | D5: 수량 | E5: 단위 | F5: 구입 단가 | G5: 구입 총액 | H5: 구매일 | I5: 모델명 | J5: 구입부서 | K5: 사용부서 | L5: 라벨수 | M5: 사진 | N5: 내용연수 | O5: 상각액 | P5: 장부가액 | Q5: 폐기 | R5: 실제위치
A6: 07-00095777 | B6: PI CHUCK | C6: HDS5A-CD-OOZO | D6: 1 | E6: 개 | F6: 2200000 | G6: =IF(D6>=1,D6*F6,"") -> 2200000 | H6: 07-09-21 | I6: HDS5A-CD-OOZO | J6: 디스플레이공학트랙 | K6: 벤처산학협력관(아산)/103-디스플레이기술교육센터, 디스플레이공학과 | L6: X | M6: X | N6: 1 | O6: =IF($O$4-H6>N6*365,G6,ROUNDUP(($O$4-H6)/(N6*365)*F6,-2)) -> 2200000 | P6: =IFERROR(G6-O6,"") -> 0 | Q6: X | R6: 503
A7: 07-00095776 | B7: PR CHUCK | C7: 7" | D7: 1 | E7: 개 | F7: 935000 | G7: 935000 | H7: 07-09-17 | I7: 7" | J7: 디스플레이공학트랙 | K7: 벤처산학협력관(아산)/103-디스플레이기술교육센터, 디스플레이공학과 | L7: X | M7: X | N7: 1 | O7: 935000 | P7: 0 | Q7: X | R7: 503
A8: 01-00017605 | B8: QMS | C8: Transpector CIS2 | D8: 1 | E8: 개 | F8: 92397182 | G8: 92397182 | H8: 01-09-25 | I8: Transpector CIS2 | J8: 디스플레이공학트랙 | K8: 벤처산학협력관(아산)/103-디스플레이기술교육센터, 디스플레이공학과 | L8: X | M8: X | N8: 1 | O8: 92397182 | P8: 0 | Q8: X | R8: ?
A9: 11-00127480 | B9: RF매치 | C9: RF MATCH 0010-09740 | D9: 1 | E9: 개 | F9: 9800000 | G9: 9800000 | H9: 11-09-09 | I9: RF MATCH 0010-09740 | J9: 디스플레이공학트랙 | K9: 벤처산학협력관(아산)/103-디스플레이기술교육센터, 디스플레이공학과 | L9: X | M9: O | N9: 1 | O9: 9800000 | P9: 0 | Q9: X | R9: 103
A10: 19-00221043 | B10: 가열교반기 | C10: HS120 | D10: 1 | E10: 개 | F10: 239800 | G10: 239800 | H10: 19-02-25 | I10: HS120 | J10: 디스플레이공학트랙 | K10: 벤처산학협력관(아산)/103-디스플레이기술교육센터, 디스플레이공학과 | L10: X | M10: X | N10: 1 | O10: 76300 | P10: 163500 | Q10: X | R10: ?
A11: 17-00215982 | B11: 가열자석교반기 | C11: HSD150-03P | D11: 1 | E11: 개 | F11: 750000 | G11: 750000 | H11: 17-08-25 | I11: HSD150-03P | J11: 디스플레이공학트랙 | K11: 벤처산학협력관(아산)/103-디스플레이기술교육센터, 디스플레이공학과 | L11: X | M11: O | N11: 1 | O11: 750000 | P11: 0 | Q11: X | R11: 512-1
A12: 14-00144993 | B12: 데시케이터 | C12: Auto-Dry, Vertical-type, 33Lit., Outer : 330×330×480mm/DeADLH.UV | D12: 1 | E12: 개 | F12: 700000 | G12: 700000 | H12: 14-07-21 | I12: Auto-Dry, Vertical-type, 33Lit., Outer : 330×330×480mm/DeADLH.UV | J12: 디스플레이공학트랙 | K12: 벤처산학협력관(아산)/103-디스플레이기술교육센터, 디스플레이공학과 | L12: X | M12: O | N12: 1 | O12: 700000 | P12: 0 | Q12: X | R12: 103
A13: 17-00217472 | B13: 디스펜서 | C13: MPP-3-73-1 | D13: 1 | E13: 개 | F13: 22000000 | G13: 22000000 | H13: 18-01-19 | I13: MPP-3-73-1 | J13: 디스플레이공학트랙 | K13: 벤처산학협력관(아산)/103-디스플레이기술교육센터, 디스플레이공학과 | L13: O | M13: O | N13: 1 | O13: 22000000 | P13: 0 | Q13: X | R13: 고려대 세종캠퍼스
A14: 09-00130861 | B14: 부속품(구동Kit) | C14: 구도Kit 및 부품 | D14: 1 | E14: 개 | F14: 736000 | G14: 736000 | H14: 09-03-04 | I14: 구도Kit 및 부품 | J14: 디스플레이공학트랙 | K14: 벤처산학협력관(아산)/103-디스플레이기술교육센터, 디스플레이공학과 | L14: X | M14: X | N14: 1 | O14: 736000 | P14: 0 | Q14: X | R14: ?
A15: 09-00130809 | B15: 부속품(에프피씨) | C15: Double sided FCCL | D15: 1 | E15: 개 | F15: 3520000 | G15: 3520000 | H15: 09-02-24 | I15: Double sided FCCL | J15: 디스플레이공학트랙 | K15: 벤처산학협력관(아산)/103-디스플레이기술교육센터, 디스플레이공학과 | L15: X | M15: X | N15: 1 | O15: 3520000 | P15: 0 | Q15: X | R15: ?
A16: 17-00217473 | B16: 산업용로보트 | C16: SM-300SX-3A-SET | D16: 1 | E16: 개 | F16: 15169000 | G16: 15169000 | H16: 18-01-19 | I16: SM-300SX-3A-SET | J16: 디스플레이공학트랙 | K16: 벤처산학협력관(아산)/103-디스플레이기술교육센터, 디스플레이공학과 | L16: O | M16: O | N16: 1 | O16: 15169000 | P16: 0 | Q16: X | R16: 고려대 세종캠퍼스
A17: 15-00148770 | B17: 스텝모터 | C17: PK-569A | D17: 1 | E17: 개 | F17: 4493500 | G17: 4493500 | H17: 15-02-13 | I17: PK-569A | J17: 디스플레이공학트랙 | K17: 벤처산학협력관(아산)/103-디스플레이기술교육센터, 디스플레이공학과 | L17: X | M17: X | N17: 1 | O17: 4493500 | P17: 0 | Q17: X | R17: OLED
A18: 15-00149491 | B18: 스핀코터 | C18: Spin-3000D | D18: 1 | E18: 개 | F18: 7150000 | G18: 7150000 | H18: 15-02-25 | I18: Spin-3000D | J18: 디스플레이공학트랙 | K18: 벤처산학협력관(아산)/103-디스플레이기술교육센터, 디스플레이공학과 | L18: X | M18: O | N18: 1 | O18: 7150000 | P18: 0 | Q18: X | R18: 103
A19: 18-00220313 | B19: 적외선온도계 | C19: MS6540B | D19: 1 | E19: 개 | F19: 310000 | G19: 310000 | H19: 18-07-30 | I19: MS6540B | J19: 디스플레이공학트랙 | K19: 벤처산학협력관(아산)/103-디스플레이기술교육센터, 디스플레이공학과 | L19: X | M19: O | N19: 1 | O19: 276900 | P19: 33100 | Q19: X | R19: 103
A20: 17-00216668 | B20: 진공청소기 | C20: vacuum cleaner | D20: 1 | E20: 개 | F20: 210000 | G20: 210000 | H20: 17-10-20 | I20: vacuum cleaner | J20: 디스플레이공학트랙 | K20: 벤처산학협력관(아산)/103-디스플레이기술교육센터, 디스플레이공학과 | L20: X | M20: O | N20: 1 | O20: 210000 | P20: 0 | Q20: X | R20: 103
A21: 17-00215983 | B21: 진공펌프 | C21: Rocker300 | D21: 1 | E21: 개 | F21: 260000 | G21: 260000 | H21: 17-08-25 | I21: Rocker300 | J21: 디스플레이공학트랙 | K21: 벤처산학협력관(아산)/103-디스플레이기술교육센터, 디스플레이공학과 | L21: O | M21: O | N21: 1 | O21: 260000 | P21: 0 | Q21: X | R21: 103
A22: 14-00146476 | B22: 초음파세척기 | C22: JAC-3010 | D22: 1 | E22: 개 | F22: 1100000 | G22: 1100000 | H22: 14-11-20 | I22: JAC-3010 | J22: 디스플레이공학트랙 | K22: 벤처산학협력관(아산)/103-디스플레이기술교육센터, 디스플레이공학과 | L22: X | M22: X | N22: 1 | O22: 1100000 | P22: 0 | Q22: X | R22: ?
A23: 18-00218518 | B23: 클린룸테이블 | C23: SUS재질 테이블 | D23: 1 | E23: 개 | F23: 460900 | G23: 460900 | H23: 18-02-09 | I23: SUS재질 테이블 | J23: 디스플레이공학트랙 | K23: 벤처산학협력관(아산)/103-디스플레이기술교육센터, 디스플레이공학과 | L23: X | M23: O | N23: 1 | O23: =IF($O$4-H23>N23*365,G23,ROUNDUP(($O$4-H23)/(N23*365)*F23,-2)) -> 460900 | P23: 0 | Q23: X | R23: 103
A24: 19-00221521 | B24: 태양전지 분석평가시스템 | C24: K3000 Xe55 | D24: 1 | E24: 개 | F24: 28435500 | G24: 28435500 | H24: 19-02-15 | I24: K3000 Xe55 | J24: 디스플레이공학트랙 | K24: 벤처산학협력관(아산)/103-디스플레이기술교육센터, 디스플레이공학과 | L24: X | M24: X | N24: 1 | O24: 9816100 | P24: 18619400 | Q24: X | R24: ?
A25: 15-00148882 | B25: 펌프 | C25: ADP122P Dry Pump | D25: 1 | E25: 개 | F25: 21120000 | G25: 21120000 | H25: 15-02-25 | I25: ADP122P Dry Pump | J25: 디스플레이공학트랙 | K25: 벤처산학협력관(아산)/103-디스플레이기술교육센터, 디스플레이공학과 | L25: X | M25: X | N25: 1 | O25: 21120000 | P25: 0 | Q25: X | R25: ?
A26: 10-00117931 | B26: LCD 모니터 | C26: 삼성 싱크마스터 943BX-EF | D26: 1 | E26: 개 | F26: 268200 | G26: 268200 | H26: 10-09-10 | I26: 삼성 싱크마스터 943BX-EF | J26: 디스플레이공학트랙 | K26: 제2공학관(아산)/503-플렉서블디스플레이(503)/전자소자연구실(503-1) | L26: X | M26: X | N26: 1 | O26: 268200 | P26: 0 | Q26: X | R26: 폐기 모니터
A27: 10-00117932 | B27: LCD 모니터 | C27: 삼성 싱크마스터 943BX-EF | D27: 1 | E27: 개 | F27: 268200 | G27: =IF(D27>=1,D27*F27,"") -> 268200 | H27: 10-09-10 | I27: 삼성 싱크마스터 943BX-EF | J27: 디스플레이공학트랙 | K27: 제2공학관(아산)/503-플렉서블디스플레이(503)/전자소자연구실(503-1) | L27: X | M27: O | N27: 1 | O27: 268200 | P27: 0 | Q27: X | R27: 현미경 PC
A28: 06-00029128 | B28: LCD모니터 | C28: LX1751Q | D28: 1 | E28: 개 | F28: 337680 | G28: 337680 | H28: 06-03-02 | I28: LX1751Q | J28: 디스플레이공학트랙 | K28: 제2공학관(아산)/503-플렉서블디스플레이(503)/전자소자연구실(503-1) | L28: X | M28: X | N28: 1 | O28: 337680 | P28: 0 | Q28: X | R28: 503
A29: 06-00044674 | B29: LCD모니터 | C29: 179N | D29: 1 | E29: 개 | F29: 310000 | G29: 310000 | H29: 06-01-24 | I29: 179N | J29: 디스플레이공학트랙 | K29: 제2공학관(아산)/503-플렉서블디스플레이(503)/전자소자연구실(503-1) | L29: X | M29: X | N29: 1 | O29: 310000 | P29: 0 | Q29: X | R29: 503
A30: 06-00065887 | B30: LCD모니터 | C30: DWCOM 17 | D30: 1 | E30: 개 | F30: 220000 | G30: 220000 | H30: 06-07-13 | I30: DWCOM 17 | J30: 디스플레이공학트랙 | K30: 제2공학관(아산)/503-플렉서블디스플레이(503)/전자소자연구실(503-1) | L30: X | M30: O | N30: 1 | O30: 220000 | P30: 0 | Q30: X | R30: 503
A31: 07-00095733 | B31: LCD모니터 | C31: CX722N-BSG4KOR | D31: 1 | E31: 개 | F31: 255000 | G31: 255000 | H31: 07-10-01 | I31: CX722N-BSG4KOR | J31: 디스플레이공학트랙 | K31: 제2공학관(아산)/503-플렉서블디스플레이(503)/전자소자연구실(503-1) | L31: X | M31: X | N31: 1 | O31: 255000 | P31: 0 | Q31: X | R31: 503
A32: 07-00097421 | B32: LCD모니터 | C32: CX722N-NSG4 | D32: 1 | E32: 개 | F32: 255000 | G32: 255000 | H32: 07-11-28 | I32: CX722N-NSG4 | J32: 디스플레이공학트랙 | K32: 제2공학관(아산)/503-플렉서블디스플레이(503)/전자소자연구실(503-1) | L32: X | M32: X | N32: 1 | O32: 255000 | P32: 0 | Q32: X | R32: 503
A33: 07-00097422 | B33: LCD모니터 | C33: CX722N-NSG4 | D33: 1 | E33: 개 | F33: 255000 | G33: 255000 | H33: 07-11-28 | I33: CX722N-NSG4 | J33: 디스플레이공학트랙 | K33: 제2공학관(아산)/503-플렉서블디스플레이(503)/전자소자연구실(503-1) | L33: X | M33: X | N33: 1 | O33: 255000 | P33: 0 | Q33: X | R33: 503
A34: 07-00097637 | B34: LCD모니터 | C34: L1753T | D34: 1 | E34: 개 | F34: 220000 | G34: 220000 | H34: 07-11-01 | I34: L1753T | J34: 디스플레이공학트랙 | K34: 제2공학관(아산)/503-플렉서블디스플레이(503)/전자소자연구실(503-1) | L34: X | M34: O | N34: 1 | O34: 220000 | P34: 0 | Q34: X | R34: 양극산화 PC
A35: 09-00109708 | B35: LCD모니터 | C35: W2271TC-PF | D35: 1 | E35: 개 | F35: 330000 | G35: 330000 | H35: 09-04-08 | I35: W2271TC-PF | J35: 디스플레이공학트랙 | K35: 제2공학관(아산)/503-플렉서블디스플레이(503)/전자소자연구실(503-1) | L35: X | M35: X | N35: 1 | O35: 330000 | P35: 0 | Q35: X | R35: 503
A36: 09-00109709 | B36: LCD모니터 | C36: W2271TC-PF | D36: 1 | E36: 개 | F36: 330000 | G36: 330000 | H36: 09-04-08 | I36: W2271TC-PF | J36: 디스플레이공학트랙 | K36: 제2공학관(아산)/503-플렉서블디스플레이(503)/전자소자연구실(503-1) | L36: X | M36: X | N36: 1 | O36: 330000 | P36: 0 | Q36: X | R36: 503
A37: 10-00113819 | B37: LCD모니터 | C37: W2053TQ | D37: 1 | E37: 개 | F37: 200000 | G37: 200000 | H37: 10-02-09 | I37: W2053TQ | J37: 디스플레이공학트랙 | K37: 제2공학관(아산)/503-플렉서블디스플레이(503)/전자소자연구실(503-1) | L37: X | M37: O | N37: 1 | O37: 200000 | P37: 0 | Q37: X | R37: 상호 PC
A38: 10-00113820 | B38: LCD모니터 | C38: W2053TQ | D38: 1 | E38: 개 | F38: 200000 | G38: 200000 | H38: 10-02-09 | I38: W2053TQ | J38: 디스플레이공학트랙 | K38: 제2공학관(아산)/503-플렉서블디스플레이(503)/전자소자연구실(503-1) | L38: X | M38: O | N38: 1 | O38: 200000 | P38: 0 | Q38: X | R38: 석준 PC
A39: 10-00113821 | B39: LCD모니터 | C39: W2053TQ | D39: 1 | E39: 개 | F39: 200000 | G39: 200000 | H39: 10-02-09 | I39: W2053TQ | J39: 디스플레이공학트랙 | K39: 제2공학관(아산)/503-플렉서블디스플레이(503)/전자소자연구실(503-1) | L39: X | M39: O | N39: 1 | O39: 200000 | P39: 0 | Q39: X | R39: 태영 PC
A40: 13-00134707 | B40: LCD모니터 | C40: 삼성 B1940R | D40: 1 | E40: 개 | F40: 197900 | G40: 197900 | H40: 13-01-25 | I40: 삼성 B1940R | J40: 디스플레이공학트랙 | K40: 제2공학관(아산)/503-플렉서블디스플레이(503)/전자소자연구실(503-1) | L40: X | M40: O | N40: 1 | O40: 197900 | P40: 0 | Q40: X | R40: 회로 측정 PC
A41: 05-00027858 | B41: LCD텔레비전 | C41: DN-42LZ30A | D41: 1 | E41: 개 | F41: 5550000 | G41: 5550000 | H41: 05-05-30 | I41: DN-42LZ30A | J41: 디스플레이공학트랙 | K41: 제2공학관(아산)/503-플렉서블디스플레이(503)/전자소자연구실(503-1) | L41: X | M41: X | N41: 1 | O41: 5550000 | P41: 0 | Q41: X | R41: 503
A42: 13-00142507 | B42: LED모니터 | C42: 20EA34TA | D42: 1 | E42: 개 | F42: 175000 | G42: 175000 | H42: 13-12-31 | I42: 20EA34TA | J42: 디스플레이공학트랙 | K42: 제2공학관(아산)/503-플렉서블디스플레이(503)/전자소자연구실(503-1) | L42: X | M42: O | N42: 1 | O42: 175000 | P42: 0 | Q42: X | R42: 효인 PC
A43: 14-00144455 | B43: LED모니터 | C43: P2314H(DELL) | D43: 1 | E43: 개 | F43: 270452 | G43: 270452 | H43: 14-04-25 | I43: P2314H(DELL) | J43: 디스플레이공학트랙 | K43: 제2공학관(아산)/503-플렉서블디스플레이(503)/전자소자연구실(503-1) | L43: X | M43: O | N43: 1 | O43: 270452 | P43: 0 | Q43: X | R43: 효인 PC
A44: 14-00146330 | B44: LED모니터 | C44: P2213t | D44: 1 | E44: 개 | F44: 219175 | G44: 219175 | H44: 14-10-20 | I44: P2213t | J44: 디스플레이공학트랙 | K44: 제2공학관(아산)/503-플렉서블디스플레이(503)/전자소자연구실(503-1) | L44: X | M44: O | N44: 1 | O44: 219175 | P44: 0 | Q44: X | R44: 서권 PC
A45: 17-00217187 | B45: LED모니터 | C45: Newsync B200H | D45: 1 | E45: 개 | F45: 83000 | G45: 83000 | H45: 17-10-24 | I45: Newsync B200H | J45: 디스플레이공학트랙 | K45: 제2공학관(아산)/503-플렉서블디스플레이(503)/전자소자연구실(503-1) | L45: X | M45: O | N45: 1 | O45: 83000 | P45: 0 | Q45: X | R45: 상호 PC
A46: 17-00217188 | B46: LED모니터 | C46: Newsync B200H | D46: 1 | E46: 개 | F46: 83000 | G46: 83000 | H46: 17-10-24 | I46: Newsync B200H | J46: 디스플레이공학트랙 | K46: 제2공학관(아산)/503-플렉서블디스플레이(503)/전자소자연구실(503-1) | L46: X | M46: O | N46: 1 | O46: 83000 | P46: 0 | Q46: X | R46: 민수 PC
A47: 17-00217189 | B47: LED모니터 | C47: Newsync B200H | D47: 1 | E47: 개 | F47: 83000 | G47: 83000 | H47: 17-10-24 | I47: Newsync B200H | J47: 디스플레이공학트랙 | K47: 제2공학관(아산)/503-플렉서블디스플레이(503)/전자소자연구실(503-1) | L47: X | M47: O | N47: 1 | O47: 83000 | P47: 0 | Q47: X | R47: 민수 PC
A48: 17-00216669 | B48: PCB커팅기 | C48: K-111-230 | D48: 1 | E48: 개 | F48: 420000 | G48: 420000 | H48: 17-10-20 | I48: K-111-230 | J48: 디스플레이공학트랙 | K48: 제2공학관(아산)/503-플렉서블디스플레이(503)/전자소자연구실(503-1) | L48: X | M48: O | N48: 1 | O48: 420000 | P48: 0 | Q48: X | R48: 503-1
A49: 13-00138765 | B49: PC수납장 | C49: 500*480*720 | D49: 1 | E49: 개 | F49: 150000 | G49: 150000 | H49: 13-06-25 | I49: 500*480*720 | J49: 디스플레이공학트랙 | K49: 제2공학관(아산)/503-플렉서블디스플레이(503)/전자소자연구실(503-1) | L49: X | M49: X | N49: 1 | O49: 150000 | P49: 0 | Q49: X | R49: 503
A50: 11-00127404 | B50: UV조도계 | C50: UVA-365 | D50: 1 | E50: 개 | F50: 740000 | G50: 740000 | H50: 11-08-30 | I50: UVA-365 | J50: 디스플레이공학트랙 | K50: 제2공학관(아산)/503-플렉서블디스플레이(503)/전자소자연구실(503-1) | L50: X | M50: X | N50: 1 | O50: 740000 | P50: 0 | Q50: X | R50: 503
A51: 12-00132782 | B51: 가열교반기 | C51: dh.wmh03020 | D51: 1 | E51: 개 | F51: 319000 | G51: 319000 | H51: 12-08-10 | I51: dh.wmh03020 | J51: 디스플레이공학트랙 | K51: 제2공학관(아산)/503-플렉서블디스플레이(503)/전자소자연구실(503-1) | L51: X | M51: X | N51: 1 | O51: 319000 | P51: 0 | Q51: X | R51: 503
A52: 12-00132783 | B52: 가열교반기 | C52: dh.wmh03020 | D52: 1 | E52: 개 | F52: 319000 | G52: 319000 | H52: 12-08-10 | I52: dh.wmh03020 | J52: 디스플레이공학트랙 | K52: 제2공학관(아산)/503-플렉서블디스플레이(503)/전자소자연구실(503-1) | L52: X | M52: X | N52: 1 | O52: 319000 | P52: 0 | Q52: X | R52: 503
A53: 14-00146478 | B53: 가열교반기 | C53: MaXtir 500 | D53: 1 | E53: 개 | F53: 374000 | G53: 374000 | H53: 14-11-20 | I53: MaXtir 500 | J53: 디스플레이공학트랙 | K53: 제2공학관(아산)/503-플렉서블디스플레이(503)/전자소자연구실(503-1) | L53: X | M53: X | N53: 1 | O53: 374000 | P53: 0 | Q53: X | R53: 503
A54: 06-00065885 | B54: 개인용컴퓨터 | D54: 1 | E54: 개 | F54: 910000 | G54: 910000 | H54: 06-07-13 | J54: 디스플레이공학트랙 | K54: 제2공학관(아산)/503-플렉서블디스플레이(503)/전자소자연구실(503-1) | L54: X | M54: X | N54: 1 | O54: 910000 | P54: 0 | Q54: X | R54: 503
A55: 07-00083403 | B55: 개인용컴퓨터 | D55: 1 | E55: 개 | F55: 849000 | G55: 849000 | H55: 07-03-28 | J55: 디스플레이공학트랙 | K55: 제2공학관(아산)/503-플렉서블디스플레이(503)/전자소자연구실(503-1) | L55: X | M55: X | N55: 1 | O55: =IF($O$4-H55>N55*365,G55,ROUNDUP(($O$4-H55)/(N55*365)*F55,-2)) -> 849000 | P55: 0 | Q55: X | R55: 503
A56: 07-00097642 | B56: 개인용컴퓨터 | C56: ESO-2 | D56: 1 | E56: 개 | F56: 700000 | G56: 700000 | H56: 07-11-01 | I56: ESO-2 | J56: 디스플레이공학트랙 | K56: 제2공학관(아산)/503-플렉서블디스플레이(503)/전자소자연구실(503-1) | L56: X | M56: X | N56: 1 | O56: 700000 | P56: 0 | Q56: X | R56: 503
A57: 08-00097688 | B57: 개인용컴퓨터 | C57: DB-273/Q234G | D57: 1 | E57: 개 | F57: 824510 | G57: 824510 | H57: 08-01-09 | I57: DB-273/Q234G | J57: 디스플레이공학트랙 | K57: 제2공학관(아산)/503-플렉서블디스플레이(503)/전자소자연구실(503-1) | L57: X | M57: X | N57: 1 | O57: 824510 | P57: 0 | Q57: X | R57: 503
A58: 08-00097689 | B58: 개인용컴퓨터 | C58: DB-273/Q234G | D58: 1 | E58: 개 | F58: 824510 | G58: 824510 | H58: 08-01-09 | I58: DB-273/Q234G | J58: 디스플레이공학트랙 | K58: 제2공학관(아산)/503-플렉서블디스플레이(503)/전자소자연구실(503-1) | L58: X | M58: X | N58: 1 | O58: 824510 | P58: 0 | Q58: X | R58: 503
A59: 98-00000638 | B59: 고주파임피던스분석기 | C59: 4291B | D59: 1 | E59: 개 | F59: 59498560 | G59: 59498560 | H59: 98-11-30 | I59: 4291B | J59: 디스플레이공학트랙 | K59: 제2공학관(아산)/503-플렉서블디스플레이(503)/전자소자연구실(503-1) | L59: X | M59: O | N59: 1 | O59: 59498560 | P59: 0 | Q59: X | R59: LCR METER
A60: 18-00218528 | B60: 공기청정기 | C60: LG AW101UCW | D60: 1 | E60: 개 | F60: 520000 | G60: 520000 | H60: 18-02-12 | I60: LG AW101UCW | J60: 디스플레이공학트랙 | K60: 제2공학관(아산)/503-플렉서블디스플레이(503)/전자소자연구실(503-1) | L60: X | M60: O | N60: 1 | O60: 520000 | P60: 0 | Q60: X | R60: 503-1
A61: 18-00218529 | B61: 공기청정기 | C61: LG AW101UCW | D61: 1 | E61: 개 | F61: 520000 | G61: 520000 | H61: 18-02-12 | I61: LG AW101UCW | J61: 디스플레이공학트랙 | K61: 제2공학관(아산)/503-플렉서블디스플레이(503)/전자소자연구실(503-1) | L61: X | M61: O | N61: 1 | O61: 520000 | P61: 0 | Q61: X | R61: 503-1
A62: 07-00059355 | B62: 광학테이블 | C62: VW-S1010I | D62: 1 | E62: 개 | F62: 3696000 | G62: 3696000 | H62: 07-05-22 | I62: VW-S1010I | J62: 디스플레이공학트랙 | K62: 제2공학관(아산)/503-플렉서블디스플레이(503)/전자소자연구실(503-1) | L62: X | M62: X | N62: 1 | O62: 3696000 | P62: 0 | Q62: X | R62: 503
A63: 13-00142036 | B63: 교반기 | C63: PC-620D | D63: 1 | E63: 개 | F63: 820000 | G63: 820000 | H63: 13-11-25 | I63: PC-620D | J63: 디스플레이공학트랙 | K63: 제2공학관(아산)/503-플렉서블디스플레이(503)/전자소자연구실(503-1) | L63: X | M63: O | N63: 1 | O63: 820000 | P63: 0 | Q63: X | R63: 504
A64: 05-00056186 | B64: 높은 캐비넷 | C64: 800*400*1880 | D64: 1 | E64: 개 | F64: 230000 | G64: 230000 | H64: 05-04-19 | I64: 800*400*1880 | J64: 디스플레이공학트랙 | K64: 제2공학관(아산)/503-플렉서블디스플레이(503)/전자소자연구실(503-1) | L64: X | M64: X | N64: 1 | O64: 230000 | P64: 0 | Q64: X | R64: -
A65: 10-00114870 | B65: 다용도수납함 | C65: CA606 | D65: 1 | E65: 개 | F65: 69000 | G65: 69000 | H65: 10-03-22 | I65: CA606 | J65: 디스플레이공학트랙 | K65: 제2공학관(아산)/503-플렉서블디스플레이(503)/전자소자연구실(503-1) | L65: X | M65: X | N65: 1 | O65: 69000 | P65: 0 | Q65: X | R65: 503
A66: 05-00056099 | B66: 단면 실험대 | C66: 1800*900*800 | D66: 1 | E66: 개 | F66: 700000 | G66: 700000 | H66: 05-04-19 | I66: 1800*900*800 | J66: 디스플레이공학트랙 | K66: 제2공학관(아산)/503-플렉서블디스플레이(503)/전자소자연구실(503-1) | L66: X | M66: X | N66: 1 | O66: 700000 | P66: 0 | Q66: X | R66: 503
A67: 12-00132213 | B67: 드라이오븐 | C67: 150L, temp. 5~250 | D67: 1 | E67: 개 | F67: 1430000 | G67: 1430000 | H67: 12-07-10 | I67: 150L, temp. 5~250 | J67: 디스플레이공학트랙 | K67: 제2공학관(아산)/503-플렉서블디스플레이(503)/전자소자연구실(503-1) | L67: X | M67: X | N67: 1 | O67: 1430000 | P67: 0 | Q67: X | R67: 503
A68: 06-00068235 | B68: 디지털논리회로실습장비 | C68: HBE-COMBO | D68: 1 | E68: 개 | F68: 1419600 | G68: 1419600 | H68: 06-09-18 | I68: HBE-COMBO | J68: 디스플레이공학트랙 | K68: 제2공학관(아산)/503-플렉서블디스플레이(503)/전자소자연구실(503-1) | L68: X | M68: X | N68: 1 | O68: 1419600 | P68: 0 | Q68: X | R68: -
A69: 06-00065140 | B69: 디지털멀티미터 | C69: FLUKE189 | D69: 1 | E69: 개 | F69: 605000 | G69: 605000 | H69: 06-06-09 | I69: FLUKE189 | J69: 디스플레이공학트랙 | K69: 제2공학관(아산)/503-플렉서블디스플레이(503)/전자소자연구실(503-1) | L69: X | M69: X | N69: 1 | O69: 605000 | P69: 0 | Q69: X | R69: -
A70: 10-00116404 | B70: 디지털복합기 | C70: 삼성 CLX-3175FNK | D70: 1 | E70: 개 | F70: 520600 | G70: 520600 | H70: 10-05-31 | I70: 삼성 CLX-3175FNK | J70: 디스플레이공학트랙 | K70: 제2공학관(아산)/503-플렉서블디스플레이(503)/전자소자연구실(503-1) | L70: X | M70: X | N70: 1 | O70: 520600 | P70: =IFERROR(G70-O70,"") -> 0 | Q70: X | R70: 사옥
A71: 06-00067001 | B71: 디지털소스미터 | C71: 2400 | D71: 1 | E71: 개 | F71: 6081999 | G71: 6081999 | H71: 06-08-30 | I71: 2400 | J71: 디스플레이공학트랙 | K71: 제2공학관(아산)/503-플렉서블디스플레이(503)/전자소자연구실(503-1) | L71: X | M71: O | N71: 1 | O71: 6081999 | P71: 0 | Q71: X | R71: 503-1
A72: 07-00080683 | B72: 레이져프린터 | C72: Laserjet1320N | D72: 1 | E72: 개 | F72: 452720 | G72: 452720 | H72: 07-02-06 | I72: Laserjet1320N | J72: 디스플레이공학트랙 | K72: 제2공학관(아산)/503-플렉서블디스플레이(503)/전자소자연구실(503-1) | L72: X | M72: O | N72: 1 | O72: 452720 | P72: 0 | Q72: X | R72: 503-1
A73: 16-00209523 | B73: 마이크로미터 | C73: 33-00357-02 | D73: 1 | E73: 개 | F73: 210000 | G73: 210000 | H73: 17-01-16 | I73: 33-00357-02 | J73: 디스플레이공학트랙 | K73: 제2공학관(아산)/503-플렉서블디스플레이(503)/전자소자연구실(503-1) | L73: X | M73: O | N73: 1 | O73: 210000 | P73: 0 | Q73: X | R73: 103
A74: 04-00025397 | B74: 모니터 | C74: SlimArt 1910BA | D74: 1 | E74: 개 | F74: 640000 | G74: 640000 | H74: 04-09-08 | I74: SlimArt 1910BA | J74: 디스플레이공학트랙 | K74: 제2공학관(아산)/503-플렉서블디스플레이(503)/전자소자연구실(503-1) | L74: X | M74: X | N74: 1 | O74: 640000 | P74: 0 | Q74: X | R74: 503
A75: 04-00025399 | B75: 모니터 | C75: SlimArt 1910BA | D75: 1 | E75: 개 | F75: 640000 | G75: 640000 | H75: 04-09-08 | I75: SlimArt 1910BA | J75: 디스플레이공학트랙 | K75: 제2공학관(아산)/503-플렉서블디스플레이(503)/전자소자연구실(503-1) | L75: X | M75: X | N75: 1 | O75: 640000 | P75: 0 | Q75: X | R75: 503
A76: 04-00025401 | B76: 모니터 | C76: SlimArt 1910BA | D76: 1 | E76: 개 | F76: 640000 | G76: 640000 | H76: 04-09-08 | I76: SlimArt 1910BA | J76: 디스플레이공학트랙 | K76: 제2공학관(아산)/503-플렉서블디스플레이(503)/전자소자연구실(503-1) | L76: X | M76: X | N76: 1 | O76: 640000 | P76: 0 | Q76: X | R76: 503
A77: 04-00025403 | B77: 모니터 | C77: SlimArt 1910BA | D77: 1 | E77: 개 | F77: 640000 | G77: 640000 | H77: 04-09-08 | I77: SlimArt 1910BA | J77: 디스플레이공학트랙 | K77: 제2공학관(아산)/503-플렉서블디스플레이(503)/전자소자연구실(503-1) | L77: X | M77: X | N77: 1 | O77: 640000 | P77: 0 | Q77: X | R77: 503
A78: 11-00125661 | B78: 모니터 | C78: 23inch | D78: 1 | E78: 개 | F78: 220000 | G78: 220000 | H78: 11-05-04 | I78: 23inch | J78: 디스플레이공학트랙 | K78: 제2공학관(아산)/503-플렉서블디스플레이(503)/전자소자연구실(503-1) | L78: X | M78: X | N78: 1 | O78: 220000 | P78: 0 | Q78: X | R78: 503
A79: 11-00125662 | B79: 모니터 | C79: 23inch | D79: 1 | E79: 개 | F79: 220000 | G79: 220000 | H79: 11-05-04 | I79: 23inch | J79: 디스플레이공학트랙 | K79: 제2공학관(아산)/503-플렉서블디스플레이(503)/전자소자연구실(503-1) | L79: X | M79: X | N79: 1 | O79: 220000 | P79: 0 | Q79: X | R79: 503
A80: 09-00111953 | B80: 보호구 보관함 | C80: MDF + 강화유리 | D80: 1 | E80: 개 | F80: 100000 | G80: 100000 | H80: 09-09-02 | I80: MDF + 강화유리 | J80: 디스플레이공학트랙 | K80: 제2공학관(아산)/503-플렉서블디스플레이(503)/전자소자연구실(503-1) | L80: X | M80: X | N80: 1 | O80: 100000 | P80: 0 | Q80: X | R80: 503
A81: 12-00130526 | B81: 복합기 | C81: [삼성]CLX-3185FW | D81: 1 | E81: 개 | F81: 460000 | G81: 460000 | H81: 12-03-09 | I81: [삼성]CLX-3185FW | J81: 디스플레이공학트랙 | K81: 제2공학관(아산)/503-플렉서블디스플레이(503)/전자소자연구실(503-1) | L81: X | M81: O | N81: 1 | O81: 460000 | P81: 0 | Q81: X | R81: 503-1
A82: 10-00120466 | B82: 부속품 | C82: 포스트15개, 포스트홀더15개,클램프4개 | D82: 1 | E82: 개 | F82: 495000 | G82: 495000 | H82: 10-07-28 | I82: 포스트15개, 포스트홀더15개,클램프4개 | J82: 디스플레이공학트랙 | K82: 제2공학관(아산)/503-플렉서블디스플레이(503)/전자소자연구실(503-1) | L82: X | M82: X | N82: 1 | O82: 495000 | P82: 0 | Q82: X | R82: 503
A83: 10-00120467 | B83: 부속품 | C83: 슬라이딩베이스 | D83: 1 | E83: 개 | F83: 154000 | G83: 154000 | H83: 10-07-28 | I83: 슬라이딩베이스 | J83: 디스플레이공학트랙 | K83: 제2공학관(아산)/503-플렉서블디스플레이(503)/전자소자연구실(503-1) | L83: X | M83: X | N83: 1 | O83: 154000 | P83: 0 | Q83: X | R83: 503
A84: 10-00120501 | B84: 부속품 | C84: 마그네틱바 | D84: 1 | E84: 개 | F84: 120000 | G84: 120000 | H84: 10-07-20 | I84: 마그네틱바 | J84: 디스플레이공학트랙 | K84: 제2공학관(아산)/503-플렉서블디스플레이(503)/전자소자연구실(503-1) | L84: X | M84: X | N84: 1 | O84: 120000 | P84: 0 | Q84: X | R84: 503
A85: 10-00120502 | B85: 부속품 | C85: 멀티미터 2개, 스파츄라 2개 | D85: 1 | E85: 개 | F85: 131600 | G85: 131600 | H85: 10-07-12 | I85: 멀티미터 2개, 스파츄라 2개 | J85: 디스플레이공학트랙 | K85: 제2공학관(아산)/503-플렉서블디스플레이(503)/전자소자연구실(503-1) | L85: X | M85: X | N85: 1 | O85: 131600 | P85: 0 | Q85: X | R85: 503
A86: 10-00120504 | B86: 부속품 | C86: 버니어캘리퍼스 | D86: 1 | E86: 개 | F86: 140000 | G86: 140000 | H86: 10-07-20 | I86: 버니어캘리퍼스 | J86: 디스플레이공학트랙 | K86: 제2공학관(아산)/503-플렉서블디스플레이(503)/전자소자연구실(503-1) | L86: X | M86: X | N86: 1 | O86: 140000 | P86: 0 | Q86: X | R86: 503
A87: 10-00120505 | B87: 부속품 | C87: 타이머 2개 | D87: 1 | E87: 개 | F87: 34000 | G87: 34000 | H87: 10-07-16 | I87: 타이머 2개 | J87: 디스플레이공학트랙 | K87: 제2공학관(아산)/503-플렉서블디스플레이(503)/전자소자연구실(503-1) | L87: X | M87: X | N87: 1 | O87: =IF($O$4-H87>N87*365,G87,ROUNDUP(($O$4-H87)/(N87*365)*F87,-2)) -> 34000 | P87: 0 | Q87: X | R87: 503
A88: 11-00141872 | B88: 부속품 | C88: #NT03-665 | D88: 1 | E88: 개 | F88: 680000 | G88: 680000 | H88: 11-08-30 | I88: #NT03-665 | J88: 디스플레이공학트랙 | K88: 제2공학관(아산)/503-플렉서블디스플레이(503)/전자소자연구실(503-1) | L88: X | M88: X | N88: 1 | O88: 680000 | P88: 0 | Q88: X | R88: 503
A89: 12-00141917 | B89: 부속품 | C89: 광대학(mm):700 | D89: 1 | E89: 개 | F89: 942590 | G89: 942590 | H89: 12-02-10 | I89: 광대학(mm):700 | J89: 디스플레이공학트랙 | K89: 제2공학관(아산)/503-플렉서블디스플레이(503)/전자소자연구실(503-1) | L89: X | M89: X | N89: 1 | O89: 942590 | P89: 0 | Q89: X | R89: 503
A90: 12-00141918 | B90: 부속품 | C90: 광대학(mm):700 | D90: 1 | E90: 개 | F90: 942590 | G90: 942590 | H90: 12-02-10 | I90: 광대학(mm):700 | J90: 디스플레이공학트랙 | K90: 제2공학관(아산)/503-플렉서블디스플레이(503)/전자소자연구실(503-1) | L90: X | M90: X | N90: 1 | O90: 942590 | P90: 0 | Q90: X | R90: 503
A91: 12-00141928 | B91: 부속품(디텍터) | C91: DET36A/M | D91: 1 | E91: 개 | F91: 1628000 | G91: =IF(D91>=1,D91*F91,"") -> 1628000 | H91: 12-01-31 | I91: DET36A/M | J91: 디스플레이공학트랙 | K91: 제2공학관(아산)/503-플렉서블디스플레이(503)/전자소자연구실(503-1) | L91: X | M91: X | N91: 1 | O91: 1628000 | P91: 0 | Q91: X | R91: 503
A92: 08-00130791 | B92: 부속품(마우스) | C92: Microsoft 무선 Natural Ergonomic Desktop7000 | D92: 1 | E92: 개 | F92: 159000 | G92: 159000 | H92: 08-07-14 | I92: Microsoft 무선 Natural Ergonomic Desktop7000 | J92: 디스플레이공학트랙 | K92: 제2공학관(아산)/503-플렉서블디스플레이(503)/전자소자연구실(503-1) | L92: X | M92: X | N92: 1 | O92: 159000 | P92: 0 | Q92: X | R92: 503
A93: 14-00144957 | B93: 분광광도계 | C93: 1-1814-02 | D93: 1 | E93: 개 | F93: 1590000 | G93: 1590000 | H93: 14-07-21 | I93: 1-1814-02 | J93: 디스플레이공학트랙 | K93: 제2공학관(아산)/503-플렉서블디스플레이(503)/전자소자연구실(503-1) | L93: X | M93: O | N93: 1 | O93: 1590000 | P93: 0 | Q93: X | R93: 503-1
A94: 11-00127941 | B94: 분쇄기 | C94: 펠로우즈 문서세단기 | D94: 1 | E94: 개 | F94: 119140 | G94: 119140 | H94: 11-11-04 | I94: 펠로우즈 문서세단기 | J94: 디스플레이공학트랙 | K94: 제2공학관(아산)/503-플렉서블디스플레이(503)/전자소자연구실(503-1) | L94: X | M94: O | N94: 1 | O94: 119140 | P94: 0 | Q94: X | R94: 503-1
A95: 09-00111697 | B95: 사무용의자 | C95: 에쿠스 대(가죽의자) | D95: 1 | E95: 개 | F95: 175000 | G95: 175000 | H95: 09-08-31 | I95: 에쿠스 대(가죽의자) | J95: 디스플레이공학트랙 | K95: 제2공학관(아산)/503-플렉서블디스플레이(503)/전자소자연구실(503-1) | L95: X | M95: X | N95: 1 | O95: 175000 | P95: 0 | Q95: X | R95: 503
A96: 07-00084806 | B96: 사무의자s형 2종 | C96: CH0501 | D96: 1 | E96: 개 | F96: 132613 | G96: 132613 | H96: 07-04-19 | I96: CH0501 | J96: 디스플레이공학트랙 | K96: 제2공학관(아산)/503-플렉서블디스플레이(503)/전자소자연구실(503-1) | L96: X | M96: X | N96: 1 | O96: 132613 | P96: 0 | Q96: X | R96: 503
A97: 07-00084807 | B97: 사무의자s형 2종 | C97: CH0501 | D97: 1 | E97: 개 | F97: 132613 | G97: 132613 | H97: 07-04-19 | I97: CH0501 | J97: 디스플레이공학트랙 | K97: 제2공학관(아산)/503-플렉서블디스플레이(503)/전자소자연구실(503-1) | L97: X | M97: O | N97: 1 | O97: 132613 | P97: 0 | Q97: X | R97: 승 의자
A98: 07-00084808 | B98: 사무의자s형 2종 | C98: CH0501 | D98: 1 | E98: 개 | F98: 132613 | G98: 132613 | H98: 07-04-19 | I98: CH0501 | J98: 디스플레이공학트랙 | K98: 제2공학관(아산)/503-플렉서블디스플레이(503)/전자소자연구실(503-1) | L98: X | M98: O | N98: 1 | O98: 132613 | P98: 0 | Q98: X | R98: 인혜 의자
A99: 07-00084809 | B99: 사무의자s형 2종 | C99: CH0501 | D99: 1 | E99: 개 | F99: 132613 | G99: 132613 | H99: 07-04-19 | I99: CH0501 | J99: 디스플레이공학트랙 | K99: 제2공학관(아산)/503-플렉서블디스플레이(503)/전자소자연구실(503-1) | L99: X | M99: O | N99: 1 | O99: 132613 | P99: 0 | Q99: X | R99: 석준 의자
A100: 07-00084810 | B100: 사무의자s형 2종 | C100: CH0501 | D100: 1 | E100: 개 | F100: 132613 | G100: 132613 | H100: 07-04-19 | I100: CH0501 | J100: 디스플레이공학트랙 | K100: 제2공학관(아산)/503-플렉서블디스플레이(503)/전자소자연구실(503-1) | L100: X | M100: O | N100: 1 | O100: 132613 | P100: 0 | Q100: X | R100: 영진 의자
A101: 07-00084811 | B101: 사무의자s형 2종 | C101: CH0501 | D101: 1 | E101: 개 | F101: 132613 | G101: 132613 | H101: 07-04-19 | I101: CH0501 | J101: 디스플레이공학트랙 | K101: 제2공학관(아산)/503-플렉서블디스플레이(503)/전자소자연구실(503-1) | L101: X | M101: X | N101: 1 | O101: 132613 | P101: 0 | Q101: X | R101: 503
A102: 07-00084812 | B102: 사무의자s형 2종 | C102: CH0501 | D102: 1 | E102: 개 | F102: 132613 | G102: 132613 | H102: 07-04-19 | I102: CH0501 | J102: 디스플레이공학트랙 | K102: 제2공학관(아산)/503-플렉서블디스플레이(503)/전자소자연구실(503-1) | L102: X | M102: X | N102: 1 | O102: 132613 | P102: 0 | Q102: X | R102: 503
A103: 07-00084813 | B103: 사무의자s형 2종 | C103: CH0501 | D103: 1 | E103: 개 | F103: 132613 | G103: 132613 | H103: 07-04-19 | I103: CH0501 | J103: 디스플레이공학트랙 | K103: 제2공학관(아산)/503-플렉서블디스플레이(503)/전자소자연구실(503-1) | L103: X | M103: X | N103: 1 | O103: 132613 | P103: 0 | Q103: X | R103: 503
A104: 07-00084814 | B104: 사무의자s형 2종 | C104: CH0501 | D104: 1 | E104: 개 | F104: 132613 | G104: 132613 | H104: 07-04-19 | I104: CH0501 | J104: 디스플레이공학트랙 | K104: 제2공학관(아산)/503-플렉서블디스플레이(503)/전자소자연구실(503-1) | L104: X | M104: X | N104: 1 | O104: 132613 | P104: 0 | Q104: X | R104: 503
A105: 07-00084815 | B105: 사무의자s형 2종 | C105: CH0501 | D105: 1 | E105: 개 | F105: 132613 | G105: 132613 | H105: 07-04-19 | I105: CH0501 | J105: 디스플레이공학트랙 | K105: 제2공학관(아산)/503-플렉서블디스플레이(503)/전자소자연구실(503-1) | L105: X | M105: X | N105: 1 | O105: 132613 | P105: 0 | Q105: X | R105: 503
A106: 07-00084816 | B106: 사무의자s형 2종 | C106: CH0501 | D106: 1 | E106: 개 | F106: 132613 | G106: 132613 | H106: 07-04-19 | I106: CH0501 | J106: 디스플레이공학트랙 | K106: 제2공학관(아산)/503-플렉서블디스플레이(503)/전자소자연구실(503-1) | L106: X | M106: X | N106: 1 | O106: 132613 | P106: 0 | Q106: X | R106: 503
A107: 07-00084817 | B107: 사무의자s형 2종 | C107: CH0501 | D107: 1 | E107: 개 | F107: 132613 | G107: 132613 | H107: 07-04-19 | I107: CH0501 | J107: 디스플레이공학트랙 | K107: 제2공학관(아산)/503-플렉서블디스플레이(503)/전자소자연구실(503-1) | L107: X | M107: X | N107: 1 | O107: 132613 | P107: 0 | Q107: X | R107: 503
A108: 07-00084818 | B108: 사무책상-2종,L/R형 | C108: SD014(L/R) | D108: 1 | E108: 개 | F108: 197588 | G108: 197588 | H108: 07-04-19 | I108: SD014(L/R) | J108: 디스플레이공학트랙 | K108: 제2공학관(아산)/503-플렉서블디스플레이(503)/전자소자연구실(503-1) | L108: X | M108: X | N108: 1 | O108: 197588 | P108: 0 | Q108: X | R108: 503
A109: 07-00084819 | B109: 사무책상-2종,L/R형 | C109: SD014(L/R) | D109: 1 | E109: 개 | F109: 197588 | G109: 197588 | H109: 07-04-19 | I109: SD014(L/R) | J109: 디스플레이공학트랙 | K109: 제2공학관(아산)/503-플렉서블디스플레이(503)/전자소자연구실(503-1) | L109: X | M109: X | N109: 1 | O109: 197588 | P109: 0 | Q109: X | R109: 503
A110: 07-00084820 | B110: 사무책상-2종,L/R형 | C110: SD014(L/R) | D110: 1 | E110: 개 | F110: 197588 | G110: 197588 | H110: 07-04-19 | I110: SD014(L/R) | J110: 디스플레이공학트랙 | K110: 제2공학관(아산)/503-플렉서블디스플레이(503)/전자소자연구실(503-1) | L110: X | M110: X | N110: 1 | O110: 197588 | P110: 0 | Q110: X | R110: 503
A111: 07-00084821 | B111: 사무책상-2종,L/R형 | C111: SD014(L/R) | D111: 1 | E111: 개 | F111: 197588 | G111: 197588 | H111: 07-04-19 | I111: SD014(L/R) | J111: 디스플레이공학트랙 | K111: 제2공학관(아산)/503-플렉서블디스플레이(503)/전자소자연구실(503-1) | L111: X | M111: O | N111: 1 | O111: 197588 | P111: 0 | Q111: X | R111: 503
A112: 07-00084822 | B112: 사무책상-2종,L/R형 | C112: SD014(L/R) | D112: 1 | E112: 개 | F112: 197588 | G112: 197588 | H112: 07-04-19 | I112: SD014(L/R) | J112: 디스플레이공학트랙 | K112: 제2공학관(아산)/503-플렉서블디스플레이(503)/전자소자연구실(503-1) | L112: X | M112: O | N112: 1 | O112: 197588 | P112: 0 | Q112: X | R112: 503
A113: 06-00067685 | B113: 서랍장 | C113: 420*560*570 | D113: 1 | E113: 개 | F113: 121000 | G113: 121000 | H113: 06-09-12 | I113: 420*560*570 | J113: 디스플레이공학트랙 | K113: 제2공학관(아산)/503-플렉서블디스플레이(503)/전자소자연구실(503-1) | L113: X | M113: X | N113: 1 | O113: 121000 | P113: 0 | Q113: X | R113: 503
A114: 08-00097693 | B114: 선반 | C114: DOTS-10 | D114: 1 | E114: 개 | F114: 1650000 | G114: 1650000 | H114: 08-01-03 | I114: DOTS-10 | J114: 디스플레이공학트랙 | K114: 제2공학관(아산)/503-플렉서블디스플레이(503)/전자소자연구실(503-1) | L114: X | M114: X | N114: 1 | O114: 1650000 | P114: 0 | Q114: X | R114: 503
A115: 05-00027763 | B115: 세계포토타이머 | C115: SG-9630 | D115: 1 | E115: 개 | F115: 523000 | G115: 523000 | H115: 05-05-04 | I115: SG-9630 | J115: 디스플레이공학트랙 | K115: 제2공학관(아산)/503-플렉서블디스플레이(503)/전자소자연구실(503-1) | L115: X | M115: X | N115: 1 | O115: 523000 | P115: 0 | Q115: X | R115: 503
A116: 08-00098306 | B116: 소스메타 | C116: 2400 | D116: 1 | E116: 개 | F116: 5542000 | G116: 5542000 | H116: 08-02-18 | I116: 2400 | J116: 디스플레이공학트랙 | K116: 제2공학관(아산)/503-플렉서블디스플레이(503)/전자소자연구실(503-1) | L116: X | M116: O | N116: 1 | O116: 5542000 | P116: 0 | Q116: X | R116: 503-1
A117: 09-00106249 | B117: 소스메타 | C117: 2400 | D117: 1 | E117: 개 | F117: 12039600 | G117: 12039600 | H117: 09-01-29 | I117: 2400 | J117: 디스플레이공학트랙 | K117: 제2공학관(아산)/503-플렉서블디스플레이(503)/전자소자연구실(503-1) | L117: X | M117: O | N117: 1 | O117: 12039600 | P117: 0 | Q117: X | R117: 503-1
A118: 11-00128553 | B118: 수납장 | C118: 510*440 | D118: 1 | E118: 개 | F118: 319000 | G118: 319000 | H118: 11-11-10 | I118: 510*440 | J118: 디스플레이공학트랙 | K118: 제2공학관(아산)/503-플렉서블디스플레이(503)/전자소자연구실(503-1) | L118: X | M118: X | N118: 1 | O118: 319000 | P118: 0 | Q118: X | R118: 503
A119: 11-00128555 | B119: 수납장 | C119: 600*150 | D119: 1 | E119: 개 | F119: 82500 | G119: 82500 | H119: 11-11-10 | I119: 600*150 | J119: 디스플레이공학트랙 | K119: 제2공학관(아산)/503-플렉서블디스플레이(503)/전자소자연구실(503-1) | L119: X | M119: X | N119: 1 | O119: =IF($O$4-H119>N119*365,G119,ROUNDUP(($O$4-H119)/(N119*365)*F119,-2)) -> 82500 | P119: 0 | Q119: X | R119: 503
A120: 14-00143563 | B120: 수납장 | C120: 수납장 | D120: 1 | E120: 개 | F120: 104000 | G120: 104000 | H120: 14-02-27 | I120: 수납장 | J120: 디스플레이공학트랙 | K120: 제2공학관(아산)/503-플렉서블디스플레이(503)/전자소자연구실(503-1) | L120: X | M120: X | N120: 1 | O120: 104000 | P120: 0 | Q120: X | R120: 503
A121: 10-00120133 | B121: 스탠드형확대경 | C121: SK120A.05-Lens:50mm | D121: 1 | E121: 개 | F121: 150000 | G121: 150000 | H121: 10-08-13 | I121: SK120A.05-Lens:50mm | J121: 디스플레이공학트랙 | K121: 제2공학관(아산)/503-플렉서블디스플레이(503)/전자소자연구실(503-1) | L121: X | M121: X | N121: 1 | O121: 150000 | P121: 0 | Q121: X | R121: 503
A122: 15-00200408 | B122: 스펙트럼메타 | C122: RLS-1000 | D122: 1 | E122: 개 | F122: 8100000 | G122: 8100000 | H122: 15-12-30 | I122: RLS-1000 | J122: 디스플레이공학트랙 | K122: 제2공학관(아산)/503-플렉서블디스플레이(503)/전자소자연구실(503-1) | L122: X | M122: X | N122: 1 | O122: 8100000 | P122: 0 | Q122: X | R122: 503
A123: 08-00100956 | B123: 스펙트로포토메터 | C123: SpectraAcademy SA-Vis | D123: 1 | E123: 개 | F123: 2200000 | G123: 2200000 | H123: 08-03-27 | I123: SpectraAcademy SA-Vis | J123: 디스플레이공학트랙 | K123: 제2공학관(아산)/503-플렉서블디스플레이(503)/전자소자연구실(503-1) | L123: X | M123: X | N123: 1 | O123: 2200000 | P123: 0 | Q123: X | R123: 503
A124: 06-00067984 | B124: 액정모니터 | D124: 1 | E124: 개 | F124: 286000 | G124: 286000 | H124: 06-05-04 | J124: 디스플레이공학트랙 | K124: 제2공학관(아산)/503-플렉서블디스플레이(503)/전자소자연구실(503-1) | L124: X | M124: X | N124: 1 | O124: 286000 | P124: 0 | Q124: X | R124: 503
A125: 06-00056094 | B125: 양면 실험대 | C125: 2400*1200*800 | D125: 1 | E125: 개 | F125: 1170000 | G125: 1170000 | H125: 06-01-06 | I125: 2400*1200*800 | J125: 디스플레이공학트랙 | K125: 제2공학관(아산)/503-플렉서블디스플레이(503)/전자소자연구실(503-1) | L125: X | M125: O | N125: 1 | O125: 1170000 | P125: 0 | Q125: X | R125: 503-1
A126: 05-00055477 | B126: 양수티크책상 | C126: 1600*800*750 | D126: 1 | E126: 개 | F126: 220000 | G126: 220000 | H126: 05-03-15 | I126: 1600*800*750 | J126: 디스플레이공학트랙 | K126: 제2공학관(아산)/503-플렉서블디스플레이(503)/전자소자연구실(503-1) | L126: X | M126: X | N126: 1 | O126: 220000 | P126: 0 | Q126: X | R126: 503
A127: 05-00056141 | B127: 양수티크책상 | C127: 1500*750*720 | D127: 1 | E127: 개 | F127: 188000 | G127: 188000 | H127: 05-04-19 | I127: 1500*750*720 | J127: 디스플레이공학트랙 | K127: 제2공학관(아산)/503-플렉서블디스플레이(503)/전자소자연구실(503-1) | L127: X | M127: X | N127: 1 | O127: 188000 | P127: 0 | Q127: X | R127: 503
A128: 05-00056142 | B128: 양수티크책상 | C128: 1500*750*720 | D128: 1 | E128: 개 | F128: 188000 | G128: 188000 | H128: 05-04-19 | I128: 1500*750*720 | J128: 디스플레이공학트랙 | K128: 제2공학관(아산)/503-플렉서블디스플레이(503)/전자소자연구실(503-1) | L128: X | M128: X | N128: 1 | O128: 188000 | P128: 0 | Q128: X | R128: 503
A129: 06-00064813 | B129: 오실로스코프 | C129: DP04054 | D129: 1 | E129: 개 | F129: 12672000 | G129: 12672000 | H129: 06-05-12 | I129: DP04054 | J129: 디스플레이공학트랙 | K129: 제2공학관(아산)/503-플렉서블디스플레이(503)/전자소자연구실(503-1) | L129: X | M129: O | N129: 1 | O129: 12672000 | P129: 0 | Q129: X | R129: 504
A130: 16-00209448 | B130: 오실로스코프 | C130: TBS1052B-EDU | D130: 1 | E130: 개 | F130: 670000 | G130: 670000 | H130: 17-01-10 | I130: TBS1052B-EDU | J130: 디스플레이공학트랙 | K130: 제2공학관(아산)/503-플렉서블디스플레이(503)/전자소자연구실(503-1) | L130: X | M130: O | N130: 1 | O130: 670000 | P130: 0 | Q130: X | R130: 512
A131: 18-00218553 | B131: 오실로스코프 | C131: MSO-4014 | D131: 1 | E131: 개 | F131: 5390000 | G131: 5390000 | H131: 18-02-05 | I131: MSO-4014 | J131: 디스플레이공학트랙 | K131: 제2공학관(아산)/503-플렉서블디스플레이(503)/전자소자연구실(503-1) | L131: X | M131: O | N131: 1 | O131: 5390000 | P131: 0 | Q131: X | R131: 503-1
A132: 11-00121930 | B132: 옵틱홀더 | C132: NT52-574 | D132: 1 | E132: 개 | F132: 177000 | G132: 177000 | H132: 11-02-25 | I132: NT52-574 | J132: 디스플레이공학트랙 | K132: 제2공학관(아산)/503-플렉서블디스플레이(503)/전자소자연구실(503-1) | L132: X | M132: X | N132: 1 | O132: 177000 | P132: 0 | Q132: X | R132: 503
A133: 10-00117922 | B133: 외장하드 | C133: [SEAGATE]외장하드 FreeAgent Desk 2.0 2BT | D133: 1 | E133: 개 | F133: 215200 | G133: 215200 | H133: 10-09-10 | I133: [SEAGATE]외장하드 FreeAgent Desk 2.0 2BT | J133: 디스플레이공학트랙 | K133: 제2공학관(아산)/503-플렉서블디스플레이(503)/전자소자연구실(503-1) | L133: X | M133: O | N133: 1 | O133: 215200 | P133: 0 | Q133: X | R133: 504
A134: 10-00117923 | B134: 외장하드 | C134: [SEAGATE]외장하드 FreeAgent Desk 2.0 1BT | D134: 1 | E134: 개 | F134: 114000 | G134: 114000 | H134: 10-09-10 | I134: [SEAGATE]외장하드 FreeAgent Desk 2.0 1BT | J134: 디스플레이공학트랙 | K134: 제2공학관(아산)/503-플렉서블디스플레이(503)/전자소자연구실(503-1) | L134: X | M134: O | N134: 1 | O134: 114000 | P134: =IFERROR(G134-O134,"") -> 0 | Q134: X | R134: 504
A135: 10-00117928 | B135: 외장하드 | C135: Free Agent GoFlex Ultra 500GB | D135: 1 | E135: 개 | F135: 111200 | G135: 111200 | H135: 10-09-10 | I135: Free Agent GoFlex Ultra 500GB | J135: 디스플레이공학트랙 | K135: 제2공학관(아산)/503-플렉서블디스플레이(503)/전자소자연구실(503-1) | L135: X | M135: X | N135: 1 | O135: 111200 | P135: 0 | Q135: X | R135: -
A136: 05-00056121 | B136: 원형실험실의자 | C136: 260*430 | D136: 1 | E136: 개 | F136: 22000 | G136: 22000 | H136: 05-04-19 | I136: 260*430 | J136: 디스플레이공학트랙 | K136: 제2공학관(아산)/503-플렉서블디스플레이(503)/전자소자연구실(503-1) | L136: X | M136: X | N136: 1 | O136: 22000 | P136: 0 | Q136: X | R136: 503-1
A137: 05-00056131 | B137: 원형실험실의자 | C137: 260*430 | D137: 1 | E137: 개 | F137: 22000 | G137: 22000 | H137: 05-04-19 | I137: 260*430 | J137: 디스플레이공학트랙 | K137: 제2공학관(아산)/503-플렉서블디스플레이(503)/전자소자연구실(503-1) | L137: X | M137: X | N137: 1 | O137: 22000 | P137: 0 | Q137: X | R137: 503-1
A138: 05-00056133 | B138: 원형실험실의자 | C138: 260*430 | D138: 1 | E138: 개 | F138: 22000 | G138: 22000 | H138: 05-04-19 | I138: 260*430 | J138: 디스플레이공학트랙 | K138: 제2공학관(아산)/503-플렉서블디스플레이(503)/전자소자연구실(503-1) | L138: X | M138: X | N138: 1 | O138: 22000 | P138: 0 | Q138: X | R138: 503-1
A139: 05-00055690 | B139: 월중 행사표 | C139: 900*600 | D139: 1 | E139: 개 | F139: 33000 | G139: 33000 | H139: 05-03-15 | I139: 900*600 | J139: 디스플레이공학트랙 | K139: 제2공학관(아산)/503-플렉서블디스플레이(503)/전자소자연구실(503-1) | L139: X | M139: O | N139: 1 | O139: 33000 | P139: 0 | Q139: X | R139: 503-1
A140: 05-00055717 | B140: 월중 행사표 | C140: 900*600 | D140: 1 | E140: 개 | F140: 33000 | G140: 33000 | H140: 05-03-15 | I140: 900*600 | J140: 디스플레이공학트랙 | K140: 제2공학관(아산)/503-플렉서블디스플레이(503)/전자소자연구실(503-1) | L140: X | M140: O | N140: 1 | O140: 33000 | P140: 0 | Q140: X | R140: 503-1
A141: 11-00121931 | B141: 웨이브플레이트 | C141: NT43-698 | D141: 1 | E141: 개 | F141: 394000 | G141: 394000 | H141: 11-02-25 | I141: NT43-698 | J141: 디스플레이공학트랙 | K141: 제2공학관(아산)/503-플렉서블디스플레이(503)/전자소자연구실(503-1) | L141: X | M141: X | N141: 1 | O141: 394000 | P141: 0 | Q141: X | R141: 503
A142: 11-00121932 | B142: 웨이브플레이트 | C142: NT43-694 | D142: 1 | E142: 개 | F142: 394000 | G142: 394000 | H142: 11-02-25 | I142: NT43-694 | J142: 디스플레이공학트랙 | K142: 제2공학관(아산)/503-플렉서블디스플레이(503)/전자소자연구실(503-1) | L142: X | M142: X | N142: 1 | O142: 394000 | P142: 0 | Q142: X | R142: 503
A143: 06-00067699 | B143: 의자 | C143: 595*580*895/957 | D143: 1 | E143: 개 | F143: 20400 | G143: 20400 | H143: 06-09-12 | I143: 595*580*895/957 | J143: 디스플레이공학트랙 | K143: 제2공학관(아산)/503-플렉서블디스플레이(503)/전자소자연구실(503-1) | L143: X | M143: X | N143: 1 | O143: 20400 | P143: 0 | Q143: X | R143: 503-1
A144: 06-00067702 | B144: 의자 | C144: 595*580*895/957 | D144: 1 | E144: 개 | F144: 20400 | G144: 20400 | H144: 06-09-12 | I144: 595*580*895/957 | J144: 디스플레이공학트랙 | K144: 제2공학관(아산)/503-플렉서블디스플레이(503)/전자소자연구실(503-1) | L144: X | M144: X | N144: 1 | O144: 20400 | P144: 0 | Q144: X | R144: 503-1
A145: 06-00067704 | B145: 의자 | C145: 595*580*895/957 | D145: 1 | E145: 개 | F145: 20400 | G145: 20400 | H145: 06-09-12 | I145: 595*580*895/957 | J145: 디스플레이공학트랙 | K145: 제2공학관(아산)/503-플렉서블디스플레이(503)/전자소자연구실(503-1) | L145: X | M145: X | N145: 1 | O145: 20400 | P145: 0 | Q145: X | R145: 503-1
A146: 06-00067707 | B146: 의자 | C146: 595*580*895/957 | D146: 1 | E146: 개 | F146: 20400 | G146: 20400 | H146: 06-09-12 | I146: 595*580*895/957 | J146: 디스플레이공학트랙 | K146: 제2공학관(아산)/503-플렉서블디스플레이(503)/전자소자연구실(503-1) | L146: X | M146: X | N146: 1 | O146: 20400 | P146: 0 | Q146: X | R146: 503-1
A147: 06-00067709 | B147: 의자 | C147: 595*580*895/957 | D147: 1 | E147: 개 | F147: 20400 | G147: 20400 | H147: 06-09-12 | I147: 595*580*895/957 | J147: 디스플레이공학트랙 | K147: 제2공학관(아산)/503-플렉서블디스플레이(503)/전자소자연구실(503-1) | L147: X | M147: X | N147: 1 | O147: 20400 | P147: 0 | Q147: X | R147: 504
A148: 06-00067710 | B148: 의자 | C148: 595*580*895/957 | D148: 1 | E148: 개 | F148: 20400 | G148: 20400 | H148: 06-09-12 | I148: 595*580*895/957 | J148: 디스플레이공학트랙 | K148: 제2공학관(아산)/503-플렉서블디스플레이(503)/전자소자연구실(503-1) | L148: X | M148: X | N148: 1 | O148: 20400 | P148: 0 | Q148: X | R148: 503-1
A149: 06-00067711 | B149: 의자 | C149: 595*580*895/957 | D149: 1 | E149: 개 | F149: 20400 | G149: 20400 | H149: 06-09-12 | I149: 595*580*895/957 | J149: 디스플레이공학트랙 | K149: 제2공학관(아산)/503-플렉서블디스플레이(503)/전자소자연구실(503-1) | L149: X | M149: X | N149: 1 | O149: 20400 | P149: 0 | Q149: X | R149: 503-1
A150: 16-00206049 | B150: 의자 | C150: DS-8174 | D150: 1 | E150: 개 | F150: 165000 | G150: 165000 | H150: 16-05-04 | I150: DS-8174 | J150: 디스플레이공학트랙 | K150: 제2공학관(아산)/503-플렉서블디스플레이(503)/전자소자연구실(503-1) | L150: X | M150: O | N150: 1 | O150: 165000 | P150: 0 | Q150: X | R150: 효인 의자
A151: 09-00110878 | B151: 이동서랍 | C151: 421*568*594 | D151: 1 | E151: 개 | F151: 149000 | G151: 149000 | H151: 09-08-06 | I151: 421*568*594 | J151: 디스플레이공학트랙 | K151: 제2공학관(아산)/503-플렉서블디스플레이(503)/전자소자연구실(503-1) | L151: X | M151: O | N151: 1 | O151: =IF($O$4-H151>N151*365,G151,ROUNDUP(($O$4-H151)/(N151*365)*F151,-2)) -> 149000 | P151: 0 | Q151: X | R151: 503-1
A152: 09-00110879 | B152: 이동서랍 | C152: 421*568*594 | D152: 1 | E152: 개 | F152: 149000 | G152: 149000 | H152: 09-08-06 | I152: 421*568*594 | J152: 디스플레이공학트랙 | K152: 제2공학관(아산)/503-플렉서블디스플레이(503)/전자소자연구실(503-1) | L152: X | M152: O | N152: 1 | O152: 149000 | P152: 0 | Q152: X | R152: 503-1
A153: 97-00007831 | B153: 일렉트로미터 | C153: 6517A | D153: 1 | E153: 개 | F153: 7890000 | G153: 7890000 | H153: 97-01-01 | I153: 6517A | J153: 디스플레이공학트랙 | K153: 제2공학관(아산)/503-플렉서블디스플레이(503)/전자소자연구실(503-1) | L153: X | M153: O | N153: 1 | O153: 7890000 | P153: 0 | Q153: X | R153: 양극계면산화
A154: 08-00098307 | B154: 일렉트로미터 | C154: 6514 | D154: 1 | E154: 개 | F154: 6363685 | G154: 6363685 | H154: 08-02-18 | I154: 6514 | J154: 디스플레이공학트랙 | K154: 제2공학관(아산)/503-플렉서블디스플레이(503)/전자소자연구실(503-1) | L154: X | M154: O | N154: 1 | O154: 6363685 | P154: 0 | Q154: X | R154: 회로 측정
A155: 06-00066999 | B155: 일렉트롬메터 | C155: 6517A/eE | D155: 1 | E155: 개 | F155: 10263000 | G155: =IF(D155>=1,D155*F155,"") -> 10263000 | H155: 06-08-30 | I155: 6517A/eE | J155: 디스플레이공학트랙 | K155: 제2공학관(아산)/503-플렉서블디스플레이(503)/전자소자연구실(503-1) | L155: X | M155: O | N155: 1 | O155: 10263000 | P155: 0 | Q155: X | R155: TFT2
A156: 12-00132784 | B156: 절단기 | C156: LPL LC-A2 | D156: 1 | E156: 개 | F156: 484000 | G156: 484000 | H156: 12-08-10 | I156: LPL LC-A2 | J156: 디스플레이공학트랙 | K156: 제2공학관(아산)/503-플렉서블디스플레이(503)/전자소자연구실(503-1) | L156: X | M156: X | N156: 1 | O156: 484000 | P156: 0 | Q156: X | R156: 503
A157: 13-00135124 | B157: 점도계 | C157: VT-04F(고점도용) | D157: 1 | E157: 개 | F157: 1683000 | G157: 1683000 | H157: 14-02-28 | I157: VT-04F(고점도용) | J157: 디스플레이공학트랙 | K157: 제2공학관(아산)/503-플렉서블디스플레이(503)/전자소자연구실(503-1) | L157: X | M157: O | N157: 1 | O157: 1683000 | P157: 0 | Q157: X | R157: 503-1
A158: 10-00117927 | B158: 제본기 | C158: 링제본기RS-1300/420*268*190mm | D158: 1 | E158: 개 | F158: 139900 | G158: 139900 | H158: 10-09-10 | I158: 링제본기RS-1300/420*268*190mm | J158: 디스플레이공학트랙 | K158: 제2공학관(아산)/503-플렉서블디스플레이(503)/전자소자연구실(503-1) | L158: X | M158: X | N158: 1 | O158: 139900 | P158: 0 | Q158: X | R158: 503
A159: 10-00113817 | B159: 조립컴퓨터 | C159: 조립컴퓨터 | D159: 1 | E159: 개 | F159: 700000 | G159: 700000 | H159: 10-02-09 | I159: 조립컴퓨터 | J159: 디스플레이공학트랙 | K159: 제2공학관(아산)/503-플렉서블디스플레이(503)/전자소자연구실(503-1) | L159: X | M159: X | N159: 1 | O159: 700000 | P159: 0 | Q159: X | R159: 503
A160: 10-00113818 | B160: 조립컴퓨터 | C160: 조립컴퓨터 | D160: 1 | E160: 개 | F160: 700000 | G160: 700000 | H160: 10-02-09 | I160: 조립컴퓨터 | J160: 디스플레이공학트랙 | K160: 제2공학관(아산)/503-플렉서블디스플레이(503)/전자소자연구실(503-1) | L160: X | M160: X | N160: 1 | O160: 700000 | P160: 0 | Q160: X | R160: 503
A161: 17-00217184 | B161: 조립컴퓨터 | C161: NCORE 볼트론 USB3.0 | D161: 1 | E161: 개 | F161: 986000 | G161: 986000 | H161: 17-10-24 | I161: NCORE 볼트론 USB3.0 | J161: 디스플레이공학트랙 | K161: 제2공학관(아산)/503-플렉서블디스플레이(503)/전자소자연구실(503-1) | L161: X | M161: O | N161: 1 | O161: 986000 | P161: 0 | Q161: X | R161: 서권 PC
A162: 17-00217185 | B162: 조립컴퓨터 | C162: NCORE 볼트론 USB3.0 | D162: 1 | E162: 개 | F162: 986000 | G162: 986000 | H162: 17-10-24 | I162: NCORE 볼트론 USB3.0 | J162: 디스플레이공학트랙 | K162: 제2공학관(아산)/503-플렉서블디스플레이(503)/전자소자연구실(503-1) | L162: X | M162: O | N162: 1 | O162: 986000 | P162: 0 | Q162: X | R162: 인혜 PC
A163: 17-00217186 | B163: 조립컴퓨터 | C163: NCORE 볼트론 USB3.0 | D163: 1 | E163: 개 | F163: 986000 | G163: 986000 | H163: 17-10-24 | I163: NCORE 볼트론 USB3.0 | J163: 디스플레이공학트랙 | K163: 제2공학관(아산)/503-플렉서블디스플레이(503)/전자소자연구실(503-1) | L163: X | M163: O | N163: 1 | O163: 986000 | P163: 0 | Q163: X | R163: 민수 PC
A164: 09-00107249 | B164: 주파수카운터 | C164: Universal Counter,H/W | D164: 1 | E164: 개 | F164: 770000 | G164: 770000 | H164: 09-02-27 | I164: Universal Counter,H/W | J164: 디스플레이공학트랙 | K164: 제2공학관(아산)/503-플렉서블디스플레이(503)/전자소자연구실(503-1) | L164: X | M164: O | N164: 1 | O164: 770000 | P164: 0 | Q164: X | R164: 504
A165: 07-00096434 | B165: 증폭기 | C165: KEITHLEY9250 | D165: 1 | E165: 개 | F165: 3650000 | G165: 3650000 | H165: 07-10-11 | I165: KEITHLEY9250 | J165: 디스플레이공학트랙 | K165: 제2공학관(아산)/503-플렉서블디스플레이(503)/전자소자연구실(503-1) | L165: X | M165: O | N165: 1 | O165: 3650000 | P165: 0 | Q165: X | R165: 504
A166: 05-00056190 | B166: 책상 | C166: Desk | D166: 1 | E166: 개 | F166: 164000 | G166: 164000 | H166: 05-04-19 | I166: Desk | J166: 디스플레이공학트랙 | K166: 제2공학관(아산)/503-플렉서블디스플레이(503)/전자소자연구실(503-1) | L166: X | M166: O | N166: 1 | O166: 164000 | P166: 0 | Q166: X | R166: 회로 책상
A167: 06-00067672 | B167: 책상 | D167: 1 | E167: 개 | F167: 250000 | G167: 250000 | H167: 06-09-12 | J167: 디스플레이공학트랙 | K167: 제2공학관(아산)/503-플렉서블디스플레이(503)/전자소자연구실(503-1) | L167: X | M167: X | N167: 1 | O167: 250000 | P167: 0 | Q167: X | R167: 석준 책상
A168: 06-00067674 | B168: 책상 | D168: 1 | E168: 개 | F168: 250000 | G168: 250000 | H168: 06-09-12 | J168: 디스플레이공학트랙 | K168: 제2공학관(아산)/503-플렉서블디스플레이(503)/전자소자연구실(503-1) | L168: X | M168: X | N168: 1 | O168: 250000 | P168: 0 | Q168: X | R168: 민수 책상
A169: 06-00067675 | B169: 책상 | D169: 1 | E169: 개 | F169: 250000 | G169: 250000 | H169: 06-09-12 | J169: 디스플레이공학트랙 | K169: 제2공학관(아산)/503-플렉서블디스플레이(503)/전자소자연구실(503-1) | L169: X | M169: X | N169: 1 | O169: 250000 | P169: 0 | Q169: X | R169: 양극산화 책상
A170: 06-00067676 | B170: 책상 | D170: 1 | E170: 개 | F170: 250000 | G170: 250000 | H170: 06-09-12 | J170: 디스플레이공학트랙 | K170: 제2공학관(아산)/503-플렉서블디스플레이(503)/전자소자연구실(503-1) | L170: X | M170: X | N170: 1 | O170: 250000 | P170: 0 | Q170: X | R170: 영진 책상
A171: 06-00067677 | B171: 책상 | D171: 1 | E171: 개 | F171: 250000 | G171: 250000 | H171: 06-09-12 | J171: 디스플레이공학트랙 | K171: 제2공학관(아산)/503-플렉서블디스플레이(503)/전자소자연구실(503-1) | L171: X | M171: X | N171: 1 | O171: 250000 | P171: 0 | Q171: X | R171: 인혜 책상
A172: 06-00067678 | B172: 책상 | D172: 1 | E172: 개 | F172: 250000 | G172: 250000 | H172: 06-09-12 | J172: 디스플레이공학트랙 | K172: 제2공학관(아산)/503-플렉서블디스플레이(503)/전자소자연구실(503-1) | L172: X | M172: X | N172: 1 | O172: 250000 | P172: 0 | Q172: X | R172: 영조 책상
A173: 06-00067680 | B173: 책상 | D173: 1 | E173: 개 | F173: 250000 | G173: 250000 | H173: 06-09-12 | J173: 디스플레이공학트랙 | K173: 제2공학관(아산)/503-플렉서블디스플레이(503)/전자소자연구실(503-1) | L173: X | M173: X | N173: 1 | O173: 250000 | P173: 0 | Q173: X | R173: 태영 책상
A174: 06-00067682 | B174: 책상 | D174: 1 | E174: 개 | F174: 250000 | G174: 250000 | H174: 06-09-12 | J174: 디스플레이공학트랙 | K174: 제2공학관(아산)/503-플렉서블디스플레이(503)/전자소자연구실(503-1) | L174: X | M174: X | N174: 1 | O174: 250000 | P174: 0 | Q174: X | R174: 상호 책상
A175: 06-00067683 | B175: 책상 | D175: 1 | E175: 개 | F175: 250000 | G175: 250000 | H175: 06-09-12 | J175: 디스플레이공학트랙 | K175: 제2공학관(아산)/503-플렉서블디스플레이(503)/전자소자연구실(503-1) | L175: X | M175: X | N175: 1 | O175: 250000 | P175: 0 | Q175: X | R175: 서권 책상
A176: 06-00067684 | B176: 책상 | C176: 1200*760*720 | D176: 1 | E176: 개 | F176: 250000 | G176: 250000 | H176: 06-09-12 | I176: 1200*760*720 | J176: 디스플레이공학트랙 | K176: 제2공학관(아산)/503-플렉서블디스플레이(503)/전자소자연구실(503-1) | L176: X | M176: X | N176: 1 | O176: 250000 | P176: 0 | Q176: X | R176: 스트레처블 책상
A177: 11-00127838 | B177: 책상 | C177: 1200*800 | D177: 1 | E177: 개 | F177: 235250 | G177: 235250 | H177: 11-10-11 | I177: 1200*800 | J177: 디스플레이공학트랙 | K177: 제2공학관(아산)/503-플렉서블디스플레이(503)/전자소자연구실(503-1) | L177: X | M177: O | N177: 1 | O177: 235250 | P177: 0 | Q177: X | R177: 503-1
A178: 02-00018621 | B178: 초순수제조장치 | C178: Nex Power 1000 | D178: 1 | E178: 개 | F178: 2200000 | G178: 2200000 | H178: 02-02-22 | I178: Nex Power 1000 | J178: 디스플레이공학트랙 | K178: 제2공학관(아산)/503-플렉서블디스플레이(503)/전자소자연구실(503-1) | L178: X | M178: O | N178: 1 | O178: 2200000 | P178: 0 | Q178: X | R178: 504
A179: 18-00218530 | B179: 초음파가습기 | C179: MIRO-NR07 | D179: 1 | E179: 개 | F179: 150000 | G179: 150000 | H179: 18-02-12 | I179: MIRO-NR07 | J179: 디스플레이공학트랙 | K179: 제2공학관(아산)/503-플렉서블디스플레이(503)/전자소자연구실(503-1) | L179: X | M179: O | N179: 1 | O179: 150000 | P179: 0 | Q179: X | R179: 503-1
A180: 18-00218531 | B180: 초음파가습기 | C180: MIRO-NR07 | D180: 1 | E180: 개 | F180: 150000 | G180: 150000 | H180: 18-02-12 | I180: MIRO-NR07 | J180: 디스플레이공학트랙 | K180: 제2공학관(아산)/503-플렉서블디스플레이(503)/전자소자연구실(503-1) | L180: X | M180: O | N180: 1 | O180: 150000 | P180: 0 | Q180: X | R180: 503-1
A181: 13-00142488 | B181: 칼라레이저복합기 | C181: CLX-4195N(토너포함) | D181: 1 | E181: 개 | F181: 527000 | G181: 527000 | H181: 13-12-31 | I181: CLX-4195N(토너포함) | J181: 디스플레이공학트랙 | K181: 제2공학관(아산)/503-플렉서블디스플레이(503)/전자소자연구실(503-1) | L181: X | M181: X | N181: 1 | O181: 527000 | P181: 0 | Q181: X | R181: 503
A182: 08-00102143 | B182: 캐비넷 | C182: 850*350*1780 | D182: 1 | E182: 개 | F182: 119000 | G182: 119000 | H182: 08-05-13 | I182: 850*350*1780 | J182: 디스플레이공학트랙 | K182: 제2공학관(아산)/503-플렉서블디스플레이(503)/전자소자연구실(503-1) | L182: X | M182: X | N182: 1 | O182: 119000 | P182: 0 | Q182: X | R182: 503
A183: 08-00102145 | B183: 캐비넷 | C183: 850*350*1780 | D183: 1 | E183: 개 | F183: 119000 | G183: 119000 | H183: 08-05-13 | I183: 850*350*1780 | J183: 디스플레이공학트랙 | K183: 제2공학관(아산)/503-플렉서블디스플레이(503)/전자소자연구실(503-1) | L183: X | M183: X | N183: 1 | O183: 119000 | P183: 0 | Q183: X | R183: 503
A184: 11-00123815 | B184: 캐비넷 | C184: 800*400*1900 | D184: 1 | E184: 개 | F184: 200000 | G184: 200000 | H184: 11-03-10 | I184: 800*400*1900 | J184: 디스플레이공학트랙 | K184: 제2공학관(아산)/503-플렉서블디스플레이(503)/전자소자연구실(503-1) | L184: X | M184: X | N184: 1 | O184: 200000 | P184: 0 | Q184: X | R184: 503
A185: 13-00142137 | B185: 캠코더 | C185: HDR-CX280 | D185: 1 | E185: 개 | F185: 446000 | G185: 446000 | H185: 13-11-25 | I185: HDR-CX280 | J185: 디스플레이공학트랙 | K185: 제2공학관(아산)/503-플렉서블디스플레이(503)/전자소자연구실(503-1) | L185: X | M185: X | N185: 1 | O185: 446000 | P185: 0 | Q185: X | R185: -
A186: 10-00113241 | B186: 컴퓨터본체 | C186: DB-Z155-BA06G | D186: 1 | E186: 개 | F186: 1245000 | G186: 1245000 | H186: 10-01-19 | I186: DB-Z155-BA06G | J186: 디스플레이공학트랙 | K186: 제2공학관(아산)/503-플렉서블디스플레이(503)/전자소자연구실(503-1) | L186: X | M186: O | N186: 1 | O186: 1245000 | P186: 0 | Q186: X | R186: 양극산화 PC
A187: 10-00116411 | B187: 컴퓨터본체 | C187: T-502 | D187: 1 | E187: 개 | F187: 949000 | G187: 949000 | H187: 10-05-31 | I187: T-502 | J187: 디스플레이공학트랙 | K187: 제2공학관(아산)/503-플렉서블디스플레이(503)/전자소자연구실(503-1) | L187: X | M187: O | N187: 1 | O187: 949000 | P187: 0 | Q187: X | R187: 영진 PC
A188: 13-00139383 | B188: 컴퓨터본체 | C188: CN/DB405T2A-C07G | D188: 1 | E188: 개 | F188: 754050 | G188: 754050 | H188: 13-07-31 | I188: CN/DB405T2A-C07G | J188: 디스플레이공학트랙 | K188: 제2공학관(아산)/503-플렉서블디스플레이(503)/전자소자연구실(503-1) | L188: X | M188: O | N188: 1 | O188: 754050 | P188: 0 | Q188: X | R188: 상호 PC
A189: 13-00141984 | B189: 컴퓨터본체 | C189: [삼성]CN/DB405T2A-C17G(포트포함) (번호:22548929) | D189: 1 | E189: 개 | F189: 754050 | G189: 754050 | H189: 13-11-05 | I189: [삼성]CN/DB405T2A-C17G(포트포함) (번호:22548929) | J189: 디스플레이공학트랙 | K189: 제2공학관(아산)/503-플렉서블디스플레이(503)/전자소자연구실(503-1) | L189: X | M189: O | N189: 1 | O189: 754050 | P189: 0 | Q189: X | R189: 회로 측정 PC
A190: 13-00141992 | B190: 컴퓨터본체 | C190: [DELL]DELL Vostro 270 | D190: 1 | E190: 개 | F190: 570000 | G190: 570000 | H190: 13-11-05 | I190: [DELL]DELL Vostro 270 | J190: 디스플레이공학트랙 | K190: 제2공학관(아산)/503-플렉서블디스플레이(503)/전자소자연구실(503-1) | L190: X | M190: O | N190: 1 | O190: 570000 | P190: 0 | Q190: X | R190: 태영 PC
A191: 13-00142523 | B191: 컴퓨터본체 | C191: Pro3330MT | D191: 1 | E191: 개 | F191: 570000 | G191: 570000 | H191: 13-12-31 | I191: Pro3330MT | J191: 디스플레이공학트랙 | K191: 제2공학관(아산)/503-플렉서블디스플레이(503)/전자소자연구실(503-1) | L191: X | M191: X | N191: 1 | O191: 570000 | P191: 0 | Q191: X | R191: 503
A192: 14-00144815 | B192: 컴퓨터본체 | C192: Series 3/DM300T2A-A57 | D192: 1 | E192: 개 | F192: 990000 | G192: 990000 | H192: 14-06-20 | I192: Series 3/DM300T2A-A57 | J192: 디스플레이공학트랙 | K192: 제2공학관(아산)/503-플렉서블디스플레이(503)/전자소자연구실(503-1) | L192: X | M192: X | N192: 1 | O192: 990000 | P192: 0 | Q192: X | R192: 503
A193: 14-00144816 | B193: 컴퓨터본체 | C193: Series 3/DM300T2A-A57 | D193: 1 | E193: 개 | F193: 990000 | G193: 990000 | H193: 14-06-20 | I193: Series 3/DM300T2A-A57 | J193: 디스플레이공학트랙 | K193: 제2공학관(아산)/503-플렉서블디스플레이(503)/전자소자연구실(503-1) | L193: X | M193: X | N193: 1 | O193: 990000 | P193: 0 | Q193: X | R193: 503
A194: 14-00144864 | B194: 컴퓨터본체 | C194: Dell OptiPlex™ 3020MT (22415663) | D194: 1 | E194: 개 | F194: 663564 | G194: 663564 | H194: 14-06-16 | I194: Dell OptiPlex™ 3020MT (22415663) | J194: 디스플레이공학트랙 | K194: 제2공학관(아산)/503-플렉서블디스플레이(503)/전자소자연구실(503-1) | L194: X | M194: O | N194: 1 | O194: 663564 | P194: 0 | Q194: X | R194: 영조 PC
A195: 14-00145271 | B195: 컴퓨터본체 | C195: DB400T2A-0A1 | D195: 1 | E195: 개 | F195: 870450 | G195: 870450 | H195: 14-09-05 | I195: DB400T2A-0A1 | J195: 디스플레이공학트랙 | K195: 제2공학관(아산)/503-플렉서블디스플레이(503)/전자소자연구실(503-1) | L195: X | M195: X | N195: 1 | O195: 870450 | P195: 0 | Q195: X | R195: 503
A196: 14-00145274 | B196: 컴퓨터본체 | C196: DB400T2A-0A1 | D196: 1 | E196: 개 | F196: 870450 | G196: 870450 | H196: 14-09-05 | I196: DB400T2A-0A1 | J196: 디스플레이공학트랙 | K196: 제2공학관(아산)/503-플렉서블디스플레이(503)/전자소자연구실(503-1) | L196: X | M196: X | N196: 1 | O196: 870450 | P196: 0 | Q196: X | R196: 503
A197: 14-00146326 | B197: 컴퓨터본체 | C197: Optiplex 3020MT | D197: 1 | E197: 개 | F197: 683672 | G197: 683672 | H197: 14-10-20 | I197: Optiplex 3020MT | J197: 디스플레이공학트랙 | K197: 제2공학관(아산)/503-플렉서블디스플레이(503)/전자소자연구실(503-1) | L197: X | M197: O | N197: 1 | O197: 683672 | P197: 0 | Q197: X | R197: 현미경 PC
A198: 14-00146327 | B198: 컴퓨터본체 | C198: Optiplex 3020MT | D198: 1 | E198: 개 | F198: 683672 | G198: 683672 | H198: 14-10-20 | I198: Optiplex 3020MT | J198: 디스플레이공학트랙 | K198: 제2공학관(아산)/503-플렉서블디스플레이(503)/전자소자연구실(503-1) | L198: X | M198: X | N198: 1 | O198: 683672 | P198: =IFERROR(G198-O198,"") -> 0 | Q198: X | R198: 504
A199: 14-00146328 | B199: 컴퓨터본체 | C199: Optiplex 3020MT | D199: 1 | E199: 개 | F199: 683672 | G199: 683672 | H199: 14-10-20 | I199: Optiplex 3020MT | J199: 디스플레이공학트랙 | K199: 제2공학관(아산)/503-플렉서블디스플레이(503)/전자소자연구실(503-1) | L199: X | M199: O | N199: 1 | O199: 683672 | P199: 0 | Q199: X | R199: 석준 PC
A200: 14-00146329 | B200: 컴퓨터본체 | C200: Optiplex 3020MT | D200: 1 | E200: 개 | F200: 683672 | G200: 683672 | H200: 14-10-20 | I200: Optiplex 3020MT | J200: 디스플레이공학트랙 | K200: 제2공학관(아산)/503-플렉서블디스플레이(503)/전자소자연구실(503-1) | L200: X | M200: O | N200: 1 | O200: 683672 | P200: 0 | Q200: X | R200: 승 PC
A201: 14-00146590 | B201: 컴퓨터본체 | C201: DM500T4A-A53 | D201: 1 | E201: 개 | F201: 1085000 | G201: 1085000 | H201: 14-10-30 | I201: DM500T4A-A53 | J201: 디스플레이공학트랙 | K201: 제2공학관(아산)/503-플렉서블디스플레이(503)/전자소자연구실(503-1) | L201: X | M201: X | N201: 1 | O201: 1085000 | P201: 0 | Q201: X | R201: 503
A202: 17-00215502 | B202: 컴퓨터본체 | C202: ProDesk 280 G2 SFF i3-6100 | D202: 1 | E202: 개 | F202: 665000 | G202: 665000 | H202: 17-05-19 | I202: ProDesk 280 G2 SFF i3-6100 | J202: 디스플레이공학트랙 | K202: 제2공학관(아산)/503-플렉서블디스플레이(503)/전자소자연구실(503-1) | L202: X | M202: O | N202: 1 | O202: 665000 | P202: 0 | Q202: X | R202: 효인 PC
A203: 10-00116428 | B203: 파워서플라이 | C203: 파워써플라이/ORT-303 | D203: 1 | E203: 개 | F203: 363000 | G203: 363000 | H203: 10-05-31 | I203: 파워써플라이/ORT-303 | J203: 디스플레이공학트랙 | K203: 제2공학관(아산)/503-플렉서블디스플레이(503)/전자소자연구실(503-1) | L203: X | M203: O | N203: 1 | O203: 363000 | P203: 0 | Q203: X | R203: 512-1
... 62 more rows

Sheet 라벨
M1: A5:D11을 수정하신 후 서식적용 버튼을 클릭하세요.
P4: 상단여백 | Q4: 1.3 | R4: 왼쪽여백 | S4: 0.4
B6: 2017 정기 재물 조사 | F6: 2017 정기 재물 조사 | J6: 2017 정기 재물 조사
B7: 물품번호: | C7: 200800102474-1 | F7: 물품번호: | G7: 200800102474-1 | J7: 물품번호: | K7: 200800102474-1
B8: 물 품 명 : | C8: bk-7 lens | F8: 물 품 명 : | G8: bk-7 lens | J8: 물 품 명 : | K8: bk-7 lens
B9: 구 매 일 : | C9: 20080526 | F9: 구 매 일 : | G9: 20080526 | J9: 구 매 일 : | K9: 20080526
B10: 전자소자연구실 | F10: 전자소자연구실 | J10: 전자소자연구실
B13: 2017 정기 재물 조사 | F13: 2017 정기 재물 조사 | J13: 2017 정기 재물 조사
B14: 물품번호: | C14: 200800102474-1 | F14: 물품번호: | G14: 200800102474-1 | J14: 물품번호: | K14: 200800102474-1
B15: 물 품 명 : | C15: bk-7 lens | F15: 물 품 명 : | G15: bk-7 lens | J15: 물 품 명 : | K15: bk-7 lens
B16: 구 매 일 : | C16: 20080526 | F16: 구 매 일 : | G16: 20080526 | J16: 구 매 일 : | K16: 20080526
B17: 전자소자연구실 | F17: 전자소자연구실 | J17: 전자소자연구실
B20: 2017 정기 재물 조사 | F20: 2017 정기 재물 조사 | J20: 2017 정기 재물 조사
B21: 물품번호: | C21: 200800102474-1 | F21: 물품번호: | G21: 200800102474-1 | J21: 물품번호: | K21: 200800102474-1
B22: 물 품 명 : | C22: bk-7 lens | F22: 물 품 명 : | G22: bk-7 lens | J22: 물 품 명 : | K22: bk-7 lens
B23: 구 매 일 : | C23: 20080526 | F23: 구 매 일 : | G23: 20080526 | J23: 구 매 일 : | K23: 20080526
B24: 전자소자연구실 | F24: 전자소자연구실 | J24: 전자소자연구실
B27: 2017 정기 재물 조사 | F27: 2017 정기 재물 조사 | J27: 2017 정기 재물 조사
B28: 물품번호: | C28: 200800102474-1 | F28: 물품번호: | G28: 200800102474-1 | J28: 물품번호: | K28: 200800102474-1
B29: 물 품 명 : | C29: bk-7 lens | F29: 물 품 명 : | G29: bk-7 lens | J29: 물 품 명 : | K29: bk-7 lens
B30: 구 매 일 : | C30: 20080526 | F30: 구 매 일 : | G30: 20080526 | J30: 구 매 일 : | K30: 20080526
B31: 전자소자연구실 | F31: 전자소자연구실 | J31: 전자소자연구실
B34: 2017 정기 재물 조사 | F34: 2017 정기 재물 조사 | J34: 2017 정기 재물 조사
B35: 물품번호: | C35: 200800102474-1 | F35: 물품번호: | G35: 200800102474-1 | J35: 물품번호: | K35: 200800102474-1
B36: 물 품 명 : | C36: bk-7 lens | F36: 물 품 명 : | G36: bk-7 lens | J36: 물 품 명 : | K36: bk-7 lens
B37: 구 매 일 : | C37: 20080526 | F37: 구 매 일 : | G37: 20080526 | J37: 구 매 일 : | K37: 20080526
B38: 전자소자연구실 | F38: 전자소자연구실 | J38: 전자소자연구실
B41: 2017 정기 재물 조사 | F41: 2017 정기 재물 조사 | J41: 2017 정기 재물 조사
B42: 물품번호: | C42: 200800102474-1 | F42: 물품번호: | G42: 200800102474-1 | J42: 물품번호: | K42: 200800102474-1
B43: 물 품 명 : | C43: bk-7 lens | F43: 물 품 명 : | G43: bk-7 lens | J43: 물 품 명 : | K43: bk-7 lens
B44: 구 매 일 : | C44: 20080526 | F44: 구 매 일 : | G44: 20080526 | J44: 구 매 일 : | K44: 20080526
B45: 전자소자연구실 | F45: 전자소자연구실 | J45: 전자소자연구실
B48: 2017 정기 재물 조사 | F48: 2017 정기 재물 조사 | J48: 2017 정기 재물 조사
B49: 물품번호: | C49: 200800102474-1 | F49: 물품번호: | G49: 200800102474-1 | J49: 물품번호: | K49: 200800102474-1
B50: 물 품 명 : | C50: bk-7 lens | F50: 물 품 명 : | G50: bk-7 lens | J50: 물 품 명 : | K50: bk-7 lens
B51: 구 매 일 : | C51: 20080526 | F51: 구 매 일 : | G51: 20080526 | J51: 구 매 일 : | K51: 20080526
B52: 전자소자연구실 | F52: 전자소자연구실 | J52: 전자소자연구실
B55: 2017 정기 재물 조사 | F55: 2017 정기 재물 조사 | J55: 2017 정기 재물 조사
B56: 물품번호: | C56: 200800102474-1 | F56: 물품번호: | G56: 200800102474-1 | J56: 물품번호: | K56: 200800102474-1
B57: 물 품 명 : | C57: bk-7 lens | F57: 물 품 명 : | G57: bk-7 lens | J57: 물 품 명 : | K57: bk-7 lens
B58: 구 매 일 : | C58: 20080526 | F58: 구 매 일 : | G58: 20080526 | J58: 구 매 일 : | K58: 20080526
B59: 전자소자연구실 | F59: 전자소자연구실 | J59: 전자소자연구실
B62: 2017 정기 재물 조사 | F62: 2017 정기 재물 조사 | J62: 2017 정기 재물 조사
B63: 물품번호: | C63: 200800102474-1 | F63: 물품번호: | G63: 200800102474-1 | J63: 물품번호: | K63: 200800102474-1
B64: 물 품 명 : | C64: bk-7 lens | F64: 물 품 명 : | G64: bk-7 lens | J64: 물 품 명 : | K64: bk-7 lens
B65: 구 매 일 : | C65: 20080526 | F65: 구 매 일 : | G65: 20080526 | J65: 구 매 일 : | K65: 20080526
B66: 전자소자연구실 | F66: 전자소자연구실 | J66: 전자소자연구실
B69: 2017 정기 재물 조사 | F69: 2017 정기 재물 조사 | J69: 2017 정기 재물 조사
B70: 물품번호: | C70: 200800102474-1 | F70: 물품번호: | G70: 200800102474-1 | J70: 물품번호: | K70: 200800102474-1
B71: 물 품 명 : | C71: bk-7 lens | F71: 물 품 명 : | G71: bk-7 lens | J71: 물 품 명 : | K71: bk-7 lens
B72: 구 매 일 : | C72: 20080526 | F72: 구 매 일 : | G72: 20080526 | J72: 구 매 일 : | K72: 20080526
B73: 전자소자연구실 | F73: 전자소자연구실 | J73: 전자소자연구실
B76: 2017 정기 재물 조사 | F76: 2017 정기 재물 조사 | J76: 2017 정기 재물 조사
B77: 물품번호: | C77: 200800102474-1 | F77: 물품번호: | G77: 200800102474-1 | J77: 물품번호: | K77: 200800102474-1
B78: 물 품 명 : | C78: bk-7 lens | F78: 물 품 명 : | G78: bk-7 lens | J78: 물 품 명 : | K78: bk-7 lens
B79: 구 매 일 : | C79: 20080526 | F79: 구 매 일 : | G79: 20080526 | J79: 구 매 일 : | K79: 20080526
B80: 전자소자연구실 | F80: 전자소자연구실 | J80: 전자소자연구실
B83: 2017 정기 재물 조사 | F83: 2017 정기 재물 조사 | J83: 2017 정기 재물 조사
B84: 물품번호: | C84: 200800102474-1 | F84: 물품번호: | G84: 200800102474-1 | J84: 물품번호: | K84: 200800102474-1
B85: 물 품 명 : | C85: bk-7 lens | F85: 물 품 명 : | G85: bk-7 lens | J85: 물 품 명 : | K85: bk-7 lens
B86: 구 매 일 : | C86: 20080526 | F86: 구 매 일 : | G86: 20080526 | J86: 구 매 일 : | K86: 20080526
B87: 전자소자연구실 | F87: 전자소자연구실 | J87: 전자소자연구실
B90: 2017 정기 재물 조사 | F90: 2017 정기 재물 조사 | J90: 2017 정기 재물 조사
B91: 물품번호: | C91: 200800102474-1 | F91: 물품번호: | G91: 200800102474-1 | J91: 물품번호: | K91: 200800102474-1
B92: 물 품 명 : | C92: bk-7 lens | F92: 물 품 명 : | G92: bk-7 lens | J92: 물 품 명 : | K92: bk-7 lens
B93: 구 매 일 : | C93: 20080526 | F93: 구 매 일 : | G93: 20080526 | J93: 구 매 일 : | K93: 20080526
B94: 전자소자연구실 | F94: 전자소자연구실 | J94: 전자소자연구실
B97: 2017 정기 재물 조사 | F97: 2017 정기 재물 조사 | J97: 2017 정기 재물 조사
B98: 물품번호: | C98: 200800102474-1 | F98: 물품번호: | G98: 200800102474-1 | J98: 물품번호: | K98: 200800102474-1
B99: 물 품 명 : | C99: bk-7 lens | F99: 물 품 명 : | G99: bk-7 lens | J99: 물 품 명 : | K99: bk-7 lens
B100: 구 매 일 : | C100: 20080526 | F100: 구 매 일 : | G100: 20080526 | J100: 구 매 일 : | K100: 20080526
B101: 전자소자연구실 | F101: 전자소자연구실 | J101: 전자소자연구실
B104: 2017 정기 재물 조사 | F104: 2017 정기 재물 조사 | J104: 2017 정기 재물 조사
B105: 물품번호: | C105: 200800102474-1 | F105: 물품번호: | G105: 200800102474-1 | J105: 물품번호: | K105: 200800102474-1
B106: 물 품 명 : | C106: bk-7 lens | F106: 물 품 명 : | G106: bk-7 lens | J106: 물 품 명 : | K106: bk-7 lens
B107: 구 매 일 : | C107: 20080526 | F107: 구 매 일 : | G107: 20080526 | J107: 구 매 일 : | K107: 20080526
B108: 전자소자연구실 | F108: 전자소자연구실 | J108: 전자소자연구실
B111: 2017 정기 재물 조사 | F111: 2017 정기 재물 조사 | J111: 2017 정기 재물 조사
B112: 물품번호: | C112: 200800102474-1 | F112: 물품번호: | G112: 200800102474-1 | J112: 물품번호: | K112: 200800102474-1
B113: 물 품 명 : | C113: bk-7 lens | F113: 물 품 명 : | G113: bk-7 lens | J113: 물 품 명 : | K113: bk-7 lens
B114: 구 매 일 : | C114: 20080526 | F114: 구 매 일 : | G114: 20080526 | J114: 구 매 일 : | K114: 20080526
B115: 전자소자연구실 | F115: 전자소자연구실 | J115: 전자소자연구실
B118: 2017 정기 재물 조사 | F118: 2017 정기 재물 조사 | J118: 2017 정기 재물 조사
B119: 물품번호: | C119: 200800102474-1 | F119: 물품번호: | G119: 200800102474-1 | J119: 물품번호: | K119: 200800102474-1
B120: 물 품 명 : | C120: bk-7 lens | F120: 물 품 명 : | G120: bk-7 lens | J120: 물 품 명 : | K120: bk-7 lens
B121: 구 매 일 : | C121: 20080526 | F121: 구 매 일 : | G121: 20080526 | J121: 구 매 일 : | K121: 20080526
B122: 전자소자연구실 | F122: 전자소자연구실 | J122: 전자소자연구실
B125: 2017 정기 재물 조사 | F125: 2017 정기 재물 조사 | J125: 2017 정기 재물 조사
B126: 물품번호: | C126: 200800102474-1 | F126: 물품번호: | G126: 200800102474-1 | J126: 물품번호: | K126: 200800102474-1
B127: 물 품 명 : | C127: bk-7 lens | F127: 물 품 명 : | G127: bk-7 lens | J127: 물 품 명 : | K127: bk-7 lens
B128: 구 매 일 : | C128: 20080526 | F128: 구 매 일 : | G128: 20080526 | J128: 구 매 일 : | K128: 20080526
B129: 전자소자연구실 | F129: 전자소자연구실 | J129: 전자소자연구실
B132: 2017 정기 재물 조사 | F132: 2017 정기 재물 조사 | J132: 2017 정기 재물 조사
B133: 물품번호: | C133: 200800102474-1 | F133: 물품번호: | G133: 200800102474-1 | J133: 물품번호: | K133: 200800102474-1
B134: 물 품 명 : | C134: bk-7 lens | F134: 물 품 명 : | G134: bk-7 lens | J134: 물 품 명 : | K134: bk-7 lens
B135: 구 매 일 : | C135: 20080526 | F135: 구 매 일 : | G135: 20080526 | J135: 구 매 일 : | K135: 20080526
B136: 전자소자연구실 | F136: 전자소자연구실 | J136: 전자소자연구실
B139: 2017 정기 재물 조사 | F139: 2017 정기 재물 조사 | J139: 2017 정기 재물 조사
B140: 물품번호: | C140: 200800102474-1 | F140: 물품번호: | G140: 200800102474-1 | J140: 물품번호: | K140: 200800102474-1
B141: 물 품 명 : | C141: bk-7 lens | F141: 물 품 명 : | G141: bk-7 lens | J141: 물 품 명 : | K141: bk-7 lens
B142: 구 매 일 : | C142: 20080526 | F142: 구 매 일 : | G142: 20080526 | J142: 구 매 일 : | K142: 20080526
B143: 전자소자연구실 | F143: 전자소자연구실 | J143: 전자소자연구실
B146: 2017 정기 재물 조사 | F146: 2017 정기 재물 조사 | J146: 2017 정기 재물 조사
B147: 물품번호: | C147: 200800102474-1 | F147: 물품번호: | G147: 200800102474-1 | J147: 물품번호: | K147: 200800102474-1
B148: 물 품 명 : | C148: bk-7 lens | F148: 물 품 명 : | G148: bk-7 lens | J148: 물 품 명 : | K148: bk-7 lens
B149: 구 매 일 : | C149: 20080526 | F149: 구 매 일 : | G149: 20080526 | J149: 구 매 일 : | K149: 20080526
B150: 전자소자연구실 | F150: 전자소자연구실 | J150: 전자소자연구실
B153: 2017 정기 재물 조사 | F153: 2017 정기 재물 조사 | J153: 2017 정기 재물 조사
B154: 물품번호: | C154: 200800102474-1 | F154: 물품번호: | G154: 200800102474-1 | J154: 물품번호: | K154: 200800102474-1
B155: 물 품 명 : | C155: bk-7 lens | F155: 물 품 명 : | G155: bk-7 lens | J155: 물 품 명 : | K155: bk-7 lens
B156: 구 매 일 : | C156: 20080526 | F156: 구 매 일 : | G156: 20080526 | J156: 구 매 일 : | K156: 20080526
B157: 전자소자연구실 | F157: 전자소자연구실 | J157: 전자소자연구실
B160: 2017 정기 재물 조사 | F160: 2017 정기 재물 조사 | J160: 2017 정기 재물 조사
B161: 물품번호: | C161: 200800102474-1 | F161: 물품번호: | G161: 200800102474-1 | J161: 물품번호: | K161: 200800102474-1
B162: 물 품 명 : | C162: bk-7 lens | F162: 물 품 명 : | G162: bk-7 lens | J162: 물 품 명 : | K162: bk-7 lens
B163: 구 매 일 : | C163: 20080526 | F163: 구 매 일 : | G163: 20080526 | J163: 구 매 일 : | K163: 20080526
B164: 전자소자연구실 | F164: 전자소자연구실 | J164: 전자소자연구실
B167: 2017 정기 재물 조사 | F167: 2017 정기 재물 조사 | J167: 2017 정기 재물 조사
B168: 물품번호: | C168: 200800102474-1 | F168: 물품번호: | G168: 200800102474-1 | J168: 물품번호: | K168: 200800102474-1
B169: 물 품 명 : | C169: bk-7 lens | F169: 물 품 명 : | G169: bk-7 lens | J169: 물 품 명 : | K169: bk-7 lens
B170: 구 매 일 : | C170: 20080526 | F170: 구 매 일 : | G170: 20080526 | J170: 구 매 일 : | K170: 20080526
B171: 전자소자연구실 | F171: 전자소자연구실 | J171: 전자소자연구실
B174: 2017 정기 재물 조사 | F174: 2017 정기 재물 조사 | J174: 2017 정기 재물 조사
B175: 물품번호: | C175: 200800102474-1 | F175: 물품번호: | G175: 200800102474-1 | J175: 물품번호: | K175: 200800102474-1
B176: 물 품 명 : | C176: bk-7 lens | F176: 물 품 명 : | G176: bk-7 lens | J176: 물 품 명 : | K176: bk-7 lens
B177: 구 매 일 : | C177: 20080526 | F177: 구 매 일 : | G177: 20080526 | J177: 구 매 일 : | K177: 20080526
B178: 전자소자연구실 | F178: 전자소자연구실 | J178: 전자소자연구실
B181: 2017 정기 재물 조사 | F181: 2017 정기 재물 조사 | J181: 2017 정기 재물 조사
B182: 물품번호: | C182: 200800102474-1 | F182: 물품번호: | G182: 200800102474-1 | J182: 물품번호: | K182: 200800102474-1
B183: 물 품 명 : | C183: bk-7 lens | F183: 물 품 명 : | G183: bk-7 lens | J183: 물 품 명 : | K183: bk-7 lens
B184: 구 매 일 : | C184: 20080526 | F184: 구 매 일 : | G184: 20080526 | J184: 구 매 일 : | K184: 20080526
B185: 전자소자연구실 | F185: 전자소자연구실 | J185: 전자소자연구실
B188: 2017 정기 재물 조사 | F188: 2017 정기 재물 조사 | J188: 2017 정기 재물 조사
B189: 물품번호: | C189: 200800102474-1 | F189: 물품번호: | G189: 200800102474-1 | J189: 물품번호: | K189: 200800102474-1
B190: 물 품 명 : | C190: bk-7 lens | F190: 물 품 명 : | G190: bk-7 lens | J190: 물 품 명 : | K190: bk-7 lens
B191: 구 매 일 : | C191: 20080526 | F191: 구 매 일 : | G191: 20080526 | J191: 구 매 일 : | K191: 20080526
B192: 전자소자연구실 | F192: 전자소자연구실 | J192: 전자소자연구실
B195: 2017 정기 재물 조사 | F195: 2017 정기 재물 조사 | J195: 2017 정기 재물 조사
B196: 물품번호: | C196: 200800102474-1 | F196: 물품번호: | G196: 200800102474-1 | J196: 물품번호: | K196: 200800102474-1
B197: 물 품 명 : | C197: bk-7 lens | F197: 물 품 명 : | G197: bk-7 lens | J197: 물 품 명 : | K197: bk-7 lens
B198: 구 매 일 : | C198: 20080526 | F198: 구 매 일 : | G198: 20080526 | J198: 구 매 일 : | K198: 20080526
B199: 전자소자연구실 | F199: 전자소자연구실 | J199: 전자소자연구실
B202: 2017 정기 재물 조사 | F202: 2017 정기 재물 조사 | J202: 2017 정기 재물 조사
B203: 물품번호: | C203: 200800102474-1 | F203: 물품번호: | G203: 200800102474-1 | J203: 물품번호: | K203: 200800102474-1
B204: 물 품 명 : | C204: bk-7 lens | F204: 물 품 명 : | G204: bk-7 lens | J204: 물 품 명 : | K204: bk-7 lens
B205: 구 매 일 : | C205: 20080526 | F205: 구 매 일 : | G205: 20080526 | J205: 구 매 일 : | K205: 20080526
B206: 전자소자연구실 | F206: 전자소자연구실 | J206: 전자소자연구실
B209: 2017 정기 재물 조사 | F209: 2017 정기 재물 조사 | J209: 2017 정기 재물 조사
B210: 물품번호: | C210: 200800102474-1 | F210: 물품번호: | G210: 200800102474-1 | J210: 물품번호: | K210: 200800102474-1
B211: 물 품 명 : | C211: bk-7 lens | F211: 물 품 명 : | G211: bk-7 lens | J211: 물 품 명 : | K211: bk-7 lens
B212: 구 매 일 : | C212: 20080526 | F212: 구 매 일 : | G212: 20080526 | J212: 구 매 일 : | K212: 20080526
B213: 전자소자연구실 | F213: 전자소자연구실 | J213: 전자소자연구실
B216: 2017 정기 재물 조사 | F216: 2017 정기 재물 조사 | J216: 2017 정기 재물 조사
B217: 물품번호: | C217: 200800102474-1 | F217: 물품번호: | G217: 200800102474-1 | J217: 물품번호: | K217: 200800102474-1
B218: 물 품 명 : | C218: bk-7 lens | F218: 물 품 명 : | G218: bk-7 lens | J218: 물 품 명 : | K218: bk-7 lens
B219: 구 매 일 : | C219: 20080526 | F219: 구 매 일 : | G219: 20080526 | J219: 구 매 일 : | K219: 20080526
B220: 전자소자연구실 | F220: 전자소자연구실 | J220: 전자소자연구실
B223: 2017 정기 재물 조사 | F223: 2017 정기 재물 조사 | J223: 2017 정기 재물 조사
B224: 물품번호: | C224: 200800102474-1 | F224: 물품번호: | G224: 200800102474-1 | J224: 물품번호: | K224: 200800102474-1
B225: 물 품 명 : | C225: bk-7 lens | F225: 물 품 명 : | G225: bk-7 lens | J225: 물 품 명 : | K225: bk-7 lens
B226: 구 매 일 : | C226: 20080526 | F226: 구 매 일 : | G226: 20080526 | J226: 구 매 일 : | K226: 20080526
B227: 전자소자연구실 | F227: 전자소자연구실 | J227: 전자소자연구실
B230: 2017 정기 재물 조사 | F230: 2017 정기 재물 조사 | J230: 2017 정기 재물 조사
B231: 물품번호: | C231: 200800102474-1 | F231: 물품번호: | G231: 200800102474-1 | J231: 물품번호: | K231: 200800102474-1
B232: 물 품 명 : | C232: bk-7 lens | F232: 물 품 명 : | G232: bk-7 lens | J232: 물 품 명 : | K232: bk-7 lens
B233: 구 매 일 : | C233: 20080526 | F233: 구 매 일 : | G233: 20080526 | J233: 구 매 일 : | K233: 20080526
B234: 전자소자연구실 | F234: 전자소자연구실 | J234: 전자소자연구실
B237: 2017 정기 재물 조사 | F237: 2017 정기 재물 조사 | J237: 2017 정기 재물 조사
B238: 물품번호: | C238: 200800102474-1 | F238: 물품번호: | G238: 200800102474-1 | J238: 물품번호: | K238: 200800102474-1
B239: 물 품 명 : | C239: bk-7 lens | F239: 물 품 명 : | G239: bk-7 lens | J239: 물 품 명 : | K239: bk-7 lens
B240: 구 매 일 : | C240: 20080526 | F240: 구 매 일 : | G240: 20080526 | J240: 구 매 일 : | K240: 20080526
B241: 전자소자연구실 | F241: 전자소자연구실 | J241: 전자소자연구실
B244: 2017 정기 재물 조사 | F244: 2017 정기 재물 조사 | J244: 2017 정기 재물 조사
B245: 물품번호: | C245: 200800102474-1 | F245: 물품번호: | G245: 200800102474-1 | J245: 물품번호: | K245: 200800102474-1
B246: 물 품 명 : | C246: bk-7 lens | F246: 물 품 명 : | G246: bk-7 lens | J246: 물 품 명 : | K246: bk-7 lens
B247: 구 매 일 : | C247: 20080526 | F247: 구 매 일 : | G247: 20080526 | J247: 구 매 일 : | K247: 20080526
B248: 전자소자연구실 | F248: 전자소자연구실 | J248: 전자소자연구실
B251: 2017 정기 재물 조사 | F251: 2017 정기 재물 조사 | J251: 2017 정기 재물 조사
B252: 물품번호: | C252: 200800102474-1 | F252: 물품번호: | G252: 200800102474-1 | J252: 물품번호: | K252: 200800102474-1
B253: 물 품 명 : | C253: bk-7 lens | F253: 물 품 명 : | G253: bk-7 lens | J253: 물 품 명 : | K253: bk-7 lens
B254: 구 매 일 : | C254: 20080526 | F254: 구 매 일 : | G254: 20080526 | J254: 구 매 일 : | K254: 20080526
B255: 전자소자연구실 | F255: 전자소자연구실 | J255: 전자소자연구실
B258: 2017 정기 재물 조사 | F258: 2017 정기 재물 조사 | J258: 2017 정기 재물 조사
B259: 물품번호: | C259: 200800102474-1 | F259: 물품번호: | G259: 200800102474-1 | J259: 물품번호: | K259: 200800102474-1
B260: 물 품 명 : | C260: bk-7 lens | F260: 물 품 명 : | G260: bk-7 lens | J260: 물 품 명 : | K260: bk-7 lens
B261: 구 매 일 : | C261: 20080526 | F261: 구 매 일 : | G261: 20080526 | J261: 구 매 일 : | K261: 20080526
B262: 전자소자연구실 | F262: 전자소자연구실 | J262: 전자소자연구실
B265: 2017 정기 재물 조사 | F265: 2017 정기 재물 조사 | J265: 2017 정기 재물 조사
B266: 물품번호: | C266: 200800102474-1 | F266: 물품번호: | G266: 200800102474-1 | J266: 물품번호: | K266: 200800102474-1
B267: 물 품 명 : | C267: bk-7 lens | F267: 물 품 명 : | G267: bk-7 lens | J267: 물 품 명 : | K267: bk-7 lens
B268: 구 매 일 : | C268: 20080526 | F268: 구 매 일 : | G268: 20080526 | J268: 구 매 일 : | K268: 20080526
B269: 전자소자연구실 | F269: 전자소자연구실 | J269: 전자소자연구실
B272: 2017 정기 재물 조사 | F272: 2017 정기 재물 조사 | J272: 2017 정기 재물 조사
B273: 물품번호: | C273: 200800102474-1 | F273: 물품번호: | G273: 200800102474-1 | J273: 물품번호: | K273: 200800102474-1
B274: 물 품 명 : | C274: bk-7 lens | F274: 물 품 명 : | G274: bk-7 lens | J274: 물 품 명 : | K274: bk-7 lens
B275: 구 매 일 : | C275: 20080526 | F275: 구 매 일 : | G275: 20080526 | J275: 구 매 일 : | K275: 20080526
B276: 전자소자연구실 | F276: 전자소자연구실 | J276: 전자소자연구실
B279: 2017 정기 재물 조사 | F279: 2017 정기 재물 조사 | J279: 2017 정기 재물 조사
B280: 물품번호: | C280: 200800102474-1 | F280: 물품번호: | G280: 200800102474-1 | J280: 물품번호: | K280: 200800102474-1
B281: 물 품 명 : | C281: bk-7 lens | F281: 물 품 명 : | G281: bk-7 lens | J281: 물 품 명 : | K281: bk-7 lens
... 812 more rows

Sheet 수리이력
A4: 물품번호 | B4: 년월일 | C4: 수 리 내 역 | D4: 수리처 | E4: 금액 | F4: 취급자 | G4: 비 고
A5: 06-003 | B5: 2013-02-05 | C5: [2번] 바퀴교체 | D5: 정밀가구 | E5: 7000 | F5: 홍길동 | G5: 바퀴파손
A6: 06-001 | B6: 2013-02-08 | C6: [4번] 상판교체 | D6: 정밀가구 | E6: 15000 | F6: 임꺽정 | G6: 상판파손
A7: 06-002 | B7: 2013-02-08 | C7: 유리 교체 | D7: 지노유리 | E7: 19000 | F7: 장길산 | G7: 유리파손
A8: 06-004 | B8: 2013-02-12 | C8: 그래픽카드 교체 | D8: 다고쳐컴 | E8: 25000 | F8: 장길산 | G8: 그래픽카드 에러

Sheet 물품이력카드
D5: 물 품 이 력 카 드 | P5: 왼쪽여백 | Q5: 92.5
L6: 2019-06-21 | P6: 위쪽여백 | Q6: 0
B7: 물 품 번 호 | D7: 04-00026469 | G7: 물 품 명 | J7: 흄후드
B8: 구 입 일 자 | C8: 2025-04-11 | D8: 수 량 | E8: 1 | G8: 단 위 | H8: 개 | J8: 규 격 | K8: 1800*800*2300
B9: 구 입 금 액 | C9: 3700000 | D9: =재물원장!I5 -> 모델명 | E9: 1800*800*2300 | G9: =재물원장!J5 -> 구입부서 | H9: 디스플레이공학트랙 | J9: =재물원장!K5 -> 사용부서 | K9: 제2공학관(아산)/512-1-형광체연구실
B10: 내 용 연 수 | C10: 1 | D10: 상각액 | E10: 3700000 | G10: 장 부 가 액 | H10: 0 | J10: 폐 기 여 부 | K10: X
C12: 년월일 | D12: 수 리 내 역 | H12: 수리처 | J12: 금액 | K12: 취급자 | L12: 비 고
B13: 수 리 기 록
